Workbook

Sheet Step 1
A1: last name | B1: first name
A2: Albrecht | B2: Josefine
A3: Adler | B3: Lucas
A4: Bender | B4: Maximilian
A5: Bachmann | B5: Stefan
A6: Bischof | B6: Oliver
A7: Brecht | B7: Sebastian
A8: Blankenburg | B8: Tanja
A9: Dieckmann | B9: Thomas
A10: Diefenbach | B10: Maike
A11: Dunker | B11: Torben
A12: Dabrowski | B12: Philip
A13: Fritsch | B13: Romy
A14: Frisch | B14: Tommy
A15: Fichter | B15: Tamara
A16: Hamann | B16: Michaela
A17: Kluge | B17: Tina
A18: Kellner | B18: Marleen
A19: Meyer | B19: Mira
A20: Maurer | B20: Wilhelm
A21: Penner | B21: Sebastian
A22: Teschner | B22: Matthias
A23: Topp | B23: Marco
A24: Uhlmann | B24: Wiebke

Sheet Step 2
E1: 1 | F1: 2 | G1: 3 | H1: 4 | I1: 5 | J1: 6 | K1: 7 | L1: 8 | M1: 9 | N1: 10 | O1: 11 | P1: 12 | Q1: 13 | R1: 14 | S1: 15 | T1: 16 | U1: 17 | V1: 18 | W1: 19 | X1: 20 | Y1: 21 | Z1: 22 | AA1: 23 | AB1: 24 | AC1: 25 | AD1: 26 | AE1: 27 | AF1: 28 | AG1: 29 | AH1: 30 | AI1: 31
B2: June | C2: 2018
B3: 6
A4: nr | B4: last name | C4: first name
A5: 1 | B5: Albrecht | C5: Josefine
A6: 2 | B6: Adler | C6: Lucas
A7: 3 | B7: Bender | C7: Maximilian
A8: 4 | B8: Bachmann | C8: Stefan
A9: 5 | B9: Bischof | C9: Oliver
A10: 6 | B10: Brecht | C10: Sebastian
A11: 7 | B11: Blankenburg | C11: Tanja
A12: 8 | B12: Dieckmann | C12: Thomas
A13: 9 | B13: Diefenbach | C13: Maike
A14: 10 | B14: Dunker | C14: Torben
A15: 11 | B15: Dabrowski | C15: Philip
A16: 12 | B16: Fritsch | C16: Romy
A17: 13 | B17: Frisch | C17: Tommy
A18: 14 | B18: Fichter | C18: Tamara
A19: 15 | B19: Hamann | C19: Michaela
A20: 16 | B20: Kluge | C20: Tina
A21: 17 | B21: Kellner | C21: Marleen
A22: 18 | B22: Meyer | C22: Mira
A23: 19 | B23: Maurer | C23: Wilhelm
A24: 20 | B24: Penner | C24: Sebastian
A25: 21 | B25: Teschner | C25: Matthias
A26: 22 | B26: Topp | C26: Marco
A27: 23 | B27: Uhlmann | C27: Wiebke

Sheet Step 3
E1: =DATE(C2,B3,1) -> 2018-06-01 | F1: =E1+1 -> 2018-06-02 | G1: =F1+1 -> 2018-06-03 | H1: 2018-06-04 | I1: 2018-06-05 | J1: 2018-06-06 | K1: 2018-06-07 | L1: 2018-06-08 | M1: 2018-06-09 | N1: 2018-06-10 | O1: 2018-06-11 | P1: 2018-06-12 | Q1: 2018-06-13 | R1: 2018-06-14 | S1: 2018-06-15 | T1: 2018-06-16 | U1: 2018-06-17 | V1: 2018-06-18 | W1: 2018-06-19 | X1: 2018-06-20 | Y1: 2018-06-21 | Z1: 2018-06-22 | AA1: 2018-06-23 | AB1: 2018-06-24 | AC1: 2018-06-25 | AD1: 2018-06-26 | AE1: 2018-06-27 | AF1: 2018-06-28 | AG1: 2018-06-29 | AH1: 2018-06-30 | AI1: 2018-07-01
B2: June | C2: 2018 | E2: =WEEKNUM(E1,2) -> 22 | F2: =WEEKNUM(F1,2) -> 22 | G2: 22 | H2: 23 | I2: 23 | J2: 23 | K2: 23 | L2: 23 | M2: 23 | N2: 23 | O2: 24 | P2: 24 | Q2: 24 | R2: 24 | S2: 24 | T2: 24 | U2: 24 | V2: 25 | W2: 25 | X2: 25 | Y2: 25 | Z2: 25 | AA2: 25 | AB2: 25 | AC2: 26 | AD2: 26 | AE2: 26 | AF2: 26 | AG2: 26 | AH2: 26 | AI2: 26
B3: 6 | E3: =LEFT(TEXT(E1,"ttt"),2) -> Fr | F3: =LEFT(TEXT(F1,"ttt"),2) -> Sa | G3: So | H3: Mo | I3: Di | J3: Mi | K3: Do | L3: Fr | M3: Sa | N3: So | O3: Mo | P3: Di | Q3: Mi | R3: Do | S3: Fr | T3: Sa | U3: So | V3: Mo | W3: Di | X3: Mi | Y3: Do | Z3: Fr | AA3: Sa | AB3: So | AC3: Mo | AD3: Di | AE3: Mi | AF3: Do | AG3: Fr | AH3: Sa | AI3: So
A4: nr | B4: last name | C4: first name | E4: =DAY(E1) -> 1 | F4: =DAY(F1) -> 2 | G4: 3 | H4: 4 | I4: 5 | J4: 6 | K4: 7 | L4: 8 | M4: 9 | N4: 10 | O4: 11 | P4: 12 | Q4: 13 | R4: 14 | S4: 15 | T4: 16 | U4: 17 | V4: 18 | W4: 19 | X4: 20 | Y4: 21 | Z4: 22 | AA4: 23 | AB4: 24 | AC4: 25 | AD4: 26 | AE4: 27 | AF4: 28 | AG4: 29 | AH4: 30 | AI4: 1
A5: 1 | B5: Albrecht | C5: Josefine
A6: 2 | B6: Adler | C6: Lucas
A7: 3 | B7: Bender | C7: Maximilian
A8: 4 | B8: Bachmann | C8: Stefan
A9: 5 | B9: Bischof | C9: Oliver
A10: 6 | B10: Brecht | C10: Sebastian
A11: 7 | B11: Blankenburg | C11: Tanja
A12: 8 | B12: Dieckmann | C12: Thomas
A13: 9 | B13: Diefenbach | C13: Maike
A14: 10 | B14: Dunker | C14: Torben
A15: 11 | B15: Dabrowski | C15: Philip
A16: 12 | B16: Fritsch | C16: Romy
A17: 13 | B17: Frisch | C17: Tommy
A18: 14 | B18: Fichter | C18: Tamara
A19: 15 | B19: Hamann | C19: Michaela
A20: 16 | B20: Kluge | C20: Tina
A21: 17 | B21: Kellner | C21: Marleen
A22: 18 | B22: Meyer | C22: Mira
A23: 19 | B23: Maurer | C23: Wilhelm
A24: 20 | B24: Penner | C24: Sebastian
A25: 21 | B25: Teschner | C25: Matthias
A26: 22 | B26: Topp | C26: Marco
A27: 23 | B27: Uhlmann | C27: Wiebke

Sheet Step 4
E1: =DATE(C2,B3,1) -> 2018-06-01 | F1: =E1+1 -> 2018-06-02 | G1: =F1+1 -> 2018-06-03 | H1: 2018-06-04 | I1: 2018-06-05 | J1: 2018-06-06 | K1: 2018-06-07 | L1: 2018-06-08 | M1: 2018-06-09 | N1: 2018-06-10 | O1: 2018-06-11 | P1: 2018-06-12 | Q1: 2018-06-13 | R1: 2018-06-14 | S1: 2018-06-15 | T1: 2018-06-16 | U1: 2018-06-17 | V1: 2018-06-18 | W1: 2018-06-19 | X1: 2018-06-20 | Y1: 2018-06-21 | Z1: 2018-06-22 | AA1: 2018-06-23 | AB1: 2018-06-24 | AC1: 2018-06-25 | AD1: 2018-06-26 | AE1: 2018-06-27 | AF1: 2018-06-28 | AG1: 2018-06-29 | AH1: 2018-06-30 | AI1: 2018-07-01
B2: =DATE(C2,B3,1) -> 2018-06-01 | C2: 2018 | E2: =WEEKNUM(E1,2) -> 22 | F2: =WEEKNUM(F1,2) -> 22 | G2: 22 | H2: 23 | I2: 23 | J2: 23 | K2: 23 | L2: 23 | M2: 23 | N2: 23 | O2: 24 | P2: 24 | Q2: 24 | R2: 24 | S2: 24 | T2: 24 | U2: 24 | V2: 25 | W2: 25 | X2: 25 | Y2: 25 | Z2: 25 | AA2: 25 | AB2: 25 | AC2: 26 | AD2: 26 | AE2: 26 | AF2: 26 | AG2: 26 | AH2: 26 | AI2: 26
B3: 6 | E3: =LEFT(TEXT(E1,"ttt"),2) -> Fr | F3: =LEFT(TEXT(F1,"ttt"),2) -> Sa | G3: So | H3: Mo | I3: Di | J3: Mi | K3: Do | L3: Fr | M3: Sa | N3: So | O3: Mo | P3: Di | Q3: Mi | R3: Do | S3: Fr | T3: Sa | U3: So | V3: Mo | W3: Di | X3: Mi | Y3: Do | Z3: Fr | AA3: Sa | AB3: So | AC3: Mo | AD3: Di | AE3: Mi | AF3: Do | AG3: Fr | AH3: Sa | AI3: So
A4: nr | B4: last name | C4: first name | E4: =DAY(E1) -> 1 | F4: =DAY(F1) -> 2 | G4: 3 | H4: 4 | I4: 5 | J4: 6 | K4: 7 | L4: 8 | M4: 9 | N4: 10 | O4: 11 | P4: 12 | Q4: 13 | R4: 14 | S4: 15 | T4: 16 | U4: 17 | V4: 18 | W4: 19 | X4: 20 | Y4: 21 | Z4: 22 | AA4: 23 | AB4: 24 | AC4: 25 | AD4: 26 | AE4: 27 | AF4: 28 | AG4: 29 | AH4: 30 | AI4: 1
A5: 1 | B5: Albrecht | C5: Josefine
A6: 2 | B6: Adler | C6: Lucas
A7: 3 | B7: Bender | C7: Maximilian
A8: 4 | B8: Bachmann | C8: Stefan
A9: 5 | B9: Bischof | C9: Oliver
A10: 6 | B10: Brecht | C10: Sebastian
A11: 7 | B11: Blankenburg | C11: Tanja
A12: 8 | B12: Dieckmann | C12: Thomas
A13: 9 | B13: Diefenbach | C13: Maike
A14: 10 | B14: Dunker | C14: Torben
A15: 11 | B15: Dabrowski | C15: Philip
A16: 12 | B16: Fritsch | C16: Romy
A17: 13 | B17: Frisch | C17: Tommy
A18: 14 | B18: Fichter | C18: Tamara
A19: 15 | B19: Hamann | C19: Michaela
A20: 16 | B20: Kluge | C20: Tina
A21: 17 | B21: Kellner | C21: Marleen
A22: 18 | B22: Meyer | C22: Mira
A23: 19 | B23: Maurer | C23: Wilhelm
A24: 20 | B24: Penner | C24: Sebastian
A25: 21 | B25: Teschner | C25: Matthias
A26: 22 | B26: Topp | C26: Marco
A27: 23 | B27: Uhlmann | C27: Wiebke

Sheet Step 5
E1: =DATE(C2,B3,1) -> 2018-06-01 | F1: =E1+1 -> 2018-06-02 | G1: =F1+1 -> 2018-06-03 | H1: 2018-06-04 | I1: 2018-06-05 | J1: 2018-06-06 | K1: 2018-06-07 | L1: 2018-06-08 | M1: 2018-06-09 | N1: 2018-06-10 | O1: 2018-06-11 | P1: 2018-06-12 | Q1: 2018-06-13 | R1: 2018-06-14 | S1: 2018-06-15 | T1: 2018-06-16 | U1: 2018-06-17 | V1: 2018-06-18 | W1: 2018-06-19 | X1: 2018-06-20 | Y1: 2018-06-21 | Z1: 2018-06-22 | AA1: 2018-06-23 | AB1: 2018-06-24 | AC1: 2018-06-25 | AD1: 2018-06-26 | AE1: 2018-06-27 | AF1: 2018-06-28 | AG1: 2018-06-29 | AH1: 2018-06-30 | AI1: 2018-07-01
B2: =DATE(C2,B3,1) -> 2018-06-01 | C2: 2018 | E2: =WEEKNUM(E1,2) -> 22 | F2: =WEEKNUM(F1,2) -> 22 | G2: 22 | H2: 23 | I2: 23 | J2: 23 | K2: 23 | L2: 23 | M2: 23 | N2: 23 | O2: 24 | P2: 24 | Q2: 24 | R2: 24 | S2: 24 | T2: 24 | U2: 24 | V2: 25 | W2: 25 | X2: 25 | Y2: 25 | Z2: 25 | AA2: 25 | AB2: 25 | AC2: 26 | AD2: 26 | AE2: 26 | AF2: 26 | AG2: 26 | AH2: 26 | AI2: 26
B3: 6 | E3: =LEFT(TEXT(E1,"ttt"),2) -> Fr | F3: =LEFT(TEXT(F1,"ttt"),2) -> Sa | G3: So | H3: Mo | I3: Di | J3: Mi | K3: Do | L3: Fr | M3: Sa | N3: So | O3: Mo | P3: Di | Q3: Mi | R3: Do | S3: Fr | T3: Sa | U3: So | V3: Mo | W3: Di | X3: Mi | Y3: Do | Z3: Fr | AA3: Sa | AB3: So | AC3: Mo | AD3: Di | AE3: Mi | AF3: Do | AG3: Fr | AH3: Sa | AI3: So
A4: nr | B4: last name | C4: first name | E4: =DAY(E1) -> 1 | F4: =DAY(F1) -> 2 | G4: 3 | H4: 4 | I4: 5 | J4: 6 | K4: 7 | L4: 8 | M4: 9 | N4: 10 | O4: 11 | P4: 12 | Q4: 13 | R4: 14 | S4: 15 | T4: 16 | U4: 17 | V4: 18 | W4: 19 | X4: 20 | Y4: 21 | Z4: 22 | AA4: 23 | AB4: 24 | AC4: 25 | AD4: 26 | AE4: 27 | AF4: 28 | AG4: 29 | AH4: 30 | AI4: 1
A5: 1 | B5: Albrecht | C5: Josefine
A6: 2 | B6: Adler | C6: Lucas
A7: 3 | B7: Bender | C7: Maximilian
A8: 4 | B8: Bachmann | C8: Stefan
A9: 5 | B9: Bischof | C9: Oliver
A10: 6 | B10: Brecht | C10: Sebastian
A11: 7 | B11: Blankenburg | C11: Tanja
A12: 8 | B12: Dieckmann | C12: Thomas
A13: 9 | B13: Diefenbach | C13: Maike
A14: 10 | B14: Dunker | C14: Torben
A15: 11 | B15: Dabrowski | C15: Philip
A16: 12 | B16: Fritsch | C16: Romy
A17: 13 | B17: Frisch | C17: Tommy
A18: 14 | B18: Fichter | C18: Tamara
A19: 15 | B19: Hamann | C19: Michaela
A20: 16 | B20: Kluge | C20: Tina
A21: 17 | B21: Kellner | C21: Marleen
A22: 18 | B22: Meyer | C22: Mira
A23: 19 | B23: Maurer | C23: Wilhelm
A24: 20 | B24: Penner | C24: Sebastian
A25: 21 | B25: Teschner | C25: Matthias
A26: 22 | B26: Topp | C26: Marco
A27: 23 | B27: Uhlmann | C27: Wiebke

Sheet Step 6
E1: =DATE(C2,B3,1) -> 2018-06-01 | F1: =E1+1 -> 2018-06-02 | G1: =F1+1 -> 2018-06-03 | H1: 2018-06-04 | I1: 2018-06-05 | J1: 2018-06-06 | K1: 2018-06-07 | L1: 2018-06-08 | M1: 2018-06-09 | N1: 2018-06-10 | O1: 2018-06-11 | P1: 2018-06-12 | Q1: 2018-06-13 | R1: 2018-06-14 | S1: 2018-06-15 | T1: 2018-06-16 | U1: 2018-06-17 | V1: 2018-06-18 | W1: 2018-06-19 | X1: 2018-06-20 | Y1: 2018-06-21 | Z1: 2018-06-22 | AA1: 2018-06-23 | AB1: 2018-06-24 | AC1: 2018-06-25 | AD1: 2018-06-26 | AE1: 2018-06-27 | AF1: 2018-06-28 | AG1: 2018-06-29 | AH1: 2018-06-30 | AI1: 2018-07-01
B2: =DATE(C2,B3,1) -> 2018-06-01 | C2: 2018 | E2: =WEEKNUM(E1,2) -> 22 | F2: =WEEKNUM(F1,2) -> 22 | G2: 22 | H2: 23 | I2: 23 | J2: 23 | K2: 23 | L2: 23 | M2: 23 | N2: 23 | O2: 24 | P2: 24 | Q2: 24 | R2: 24 | S2: 24 | T2: 24 | U2: 24 | V2: 25 | W2: 25 | X2: 25 | Y2: 25 | Z2: 25 | AA2: 25 | AB2: 25 | AC2: 26 | AD2: 26 | AE2: 26 | AF2: 26 | AG2: 26 | AH2: 26 | AI2: 26
B3: 6 | E3: =LEFT(TEXT(E1,"ttt"),2) -> Fr | F3: =LEFT(TEXT(F1,"ttt"),2) -> Sa | G3: So | H3: Mo | I3: Di | J3: Mi | K3: Do | L3: Fr | M3: Sa | N3: So | O3: Mo | P3: Di | Q3: Mi | R3: Do | S3: Fr | T3: Sa | U3: So | V3: Mo | W3: Di | X3: Mi | Y3: Do | Z3: Fr | AA3: Sa | AB3: So | AC3: Mo | AD3: Di | AE3: Mi | AF3: Do | AG3: Fr | AH3: Sa | AI3: So
A4: nr | B4: last name | C4: first name | E4: =DAY(E1) -> 1 | F4: =DAY(F1) -> 2 | G4: 3 | H4: 4 | I4: 5 | J4: 6 | K4: 7 | L4: 8 | M4: 9 | N4: 10 | O4: 11 | P4: 12 | Q4: 13 | R4: 14 | S4: 15 | T4: 16 | U4: 17 | V4: 18 | W4: 19 | X4: 20 | Y4: 21 | Z4: 22 | AA4: 23 | AB4: 24 | AC4: 25 | AD4: 26 | AE4: 27 | AF4: 28 | AG4: 29 | AH4: 30 | AI4: 1
A5: 1 | B5: Albrecht | C5: Josefine
A6: 2 | B6: Adler | C6: Lucas
A7: 3 | B7: Bender | C7: Maximilian
A8: 4 | B8: Bachmann | C8: Stefan
A9: 5 | B9: Bischof | C9: Oliver
A10: 6 | B10: Brecht | C10: Sebastian
A11: 7 | B11: Blankenburg | C11: Tanja
A12: 8 | B12: Dieckmann | C12: Thomas
A13: 9 | B13: Diefenbach | C13: Maike
A14: 10 | B14: Dunker | C14: Torben
A15: 11 | B15: Dabrowski | C15: Philip
A16: 12 | B16: Fritsch | C16: Romy
A17: 13 | B17: Frisch | C17: Tommy
A18: 14 | B18: Fichter | C18: Tamara
A19: 15 | B19: Hamann | C19: Michaela
A20: 16 | B20: Kluge | C20: Tina
A21: 17 | B21: Kellner | C21: Marleen
A22: 18 | B22: Meyer | C22: Mira
A23: 19 | B23: Maurer | C23: Wilhelm
A24: 20 | B24: Penner | C24: Sebastian
A25: 21 | B25: Teschner | C25: Matthias
A26: 22 | B26: Topp | C26: Marco
A27: 23 | B27: Uhlmann | C27: Wiebke

Sheet Step 7
E1: =DATE(C2,B3,1) -> 2018-06-01 | F1: =E1+1 -> 2018-06-02 | G1: =F1+1 -> 2018-06-03 | H1: 2018-06-04 | I1: 2018-06-05 | J1: 2018-06-06 | K1: 2018-06-07 | L1: 2018-06-08 | M1: 2018-06-09 | N1: 2018-06-10 | O1: 2018-06-11 | P1: 2018-06-12 | Q1: 2018-06-13 | R1: 2018-06-14 | S1: 2018-06-15 | T1: 2018-06-16 | U1: 2018-06-17 | V1: 2018-06-18 | W1: 2018-06-19 | X1: 2018-06-20 | Y1: 2018-06-21 | Z1: 2018-06-22 | AA1: 2018-06-23 | AB1: 2018-06-24 | AC1: 2018-06-25 | AD1: 2018-06-26 | AE1: 2018-06-27 | AF1: 2018-06-28 | AG1: 2018-06-29 | AH1: 2018-06-30 | AI1: 2018-07-01
B2: =DATE(C2,B3,1) -> 2018-06-01 | C2: 2018 | E2: =WEEKNUM(E1,2) -> 22 | F2: =WEEKNUM(F1,2) -> 22 | G2: 22 | H2: 23 | I2: 23 | J2: 23 | K2: 23 | L2: 23 | M2: 23 | N2: 23 | O2: 24 | P2: 24 | Q2: 24 | R2: 24 | S2: 24 | T2: 24 | U2: 24 | V2: 25 | W2: 25 | X2: 25 | Y2: 25 | Z2: 25 | AA2: 25 | AB2: 25 | AC2: 26 | AD2: 26 | AE2: 26 | AF2: 26 | AG2: 26 | AH2: 26 | AI2: 26
B3: 6 | E3: =LEFT(TEXT(E1,"ttt"),2) -> Fr | F3: =LEFT(TEXT(F1,"ttt"),2) -> Sa | G3: So | H3: Mo | I3: Di | J3: Mi | K3: Do | L3: Fr | M3: Sa | N3: So | O3: Mo | P3: Di | Q3: Mi | R3: Do | S3: Fr | T3: Sa | U3: So | V3: Mo | W3: Di | X3: Mi | Y3: Do | Z3: Fr | AA3: Sa | AB3: So | AC3: Mo | AD3: Di | AE3: Mi | AF3: Do | AG3: Fr | AH3: Sa | AI3: So
A4: nr | B4: last name | C4: first name | D4: month | E4: =DAY(E1) -> 1 | F4: =DAY(F1) -> 2 | G4: 3 | H4: 4 | I4: 5 | J4: 6 | K4: 7 | L4: 8 | M4: 9 | N4: 10 | O4: 11 | P4: 12 | Q4: 13 | R4: 14 | S4: 15 | T4: 16 | U4: 17 | V4: 18 | W4: 19 | X4: 20 | Y4: 21 | Z4: 22 | AA4: 23 | AB4: 24 | AC4: 25 | AD4: 26 | AE4: 27 | AF4: 28 | AG4: 29 | AH4: 30 | AI4: 1
A5: 1 | B5: Albrecht | C5: Josefine | D5: =SUM(E5:AI5) -> 0
A6: 2 | B6: Adler | C6: Lucas | D6: =SUM(E6:AI6) -> 0
A7: 3 | B7: Bender | C7: Maximilian | D7: 0
A8: 4 | B8: Bachmann | C8: Stefan | D8: 0
A9: 5 | B9: Bischof | C9: Oliver | D9: 0
A10: 6 | B10: Brecht | C10: Sebastian | D10: 0
A11: 7 | B11: Blankenburg | C11: Tanja | D11: 0
A12: 8 | B12: Dieckmann | C12: Thomas | D12: 0
A13: 9 | B13: Diefenbach | C13: Maike | D13: 0
A14: 10 | B14: Dunker | C14: Torben | D14: 0
A15: 11 | B15: Dabrowski | C15: Philip | D15: 0
A16: 12 | B16: Fritsch | C16: Romy | D16: 0
A17: 13 | B17: Frisch | C17: Tommy | D17: 0
A18: 14 | B18: Fichter | C18: Tamara | D18: 0
A19: 15 | B19: Hamann | C19: Michaela | D19: 0
A20: 16 | B20: Kluge | C20: Tina | D20: 0
A21: 17 | B21: Kellner | C21: Marleen | D21: 0
A22: 18 | B22: Meyer | C22: Mira | D22: 0
A23: 19 | B23: Maurer | C23: Wilhelm | D23: 0
A24: 20 | B24: Penner | C24: Sebastian | D24: 0
A25: 21 | B25: Teschner | C25: Matthias | D25: 0
A26: 22 | B26: Topp | C26: Marco | D26: 0
A27: 23 | B27: Uhlmann | C27: Wiebke | D27: 0
Q32: confirmed:
R33: Andreas Stern

Sheet Step 8
E1: =DATE(C2,B3,1) -> 2018-06-01 | F1: =E1+1 -> 2018-06-02 | G1: =F1+1 -> 2018-06-03 | H1: 2018-06-04 | I1: 2018-06-05 | J1: 2018-06-06 | K1: 2018-06-07 | L1: 2018-06-08 | M1: 2018-06-09 | N1: 2018-06-10 | O1: 2018-06-11 | P1: 2018-06-12 | Q1: 2018-06-13 | R1: 2018-06-14 | S1: 2018-06-15 | T1: 2018-06-16 | U1: 2018-06-17 | V1: 2018-06-18 | W1: 2018-06-19 | X1: 2018-06-20 | Y1: 2018-06-21 | Z1: 2018-06-22 | AA1: 2018-06-23 | AB1: 2018-06-24 | AC1: 2018-06-25 | AD1: 2018-06-26 | AE1: 2018-06-27 | AF1: 2018-06-28 | AG1: 2018-06-29 | AH1: 2018-06-30 | AI1: 2018-07-01
B2: =DATE(C2,B3,1) -> 2018-06-01 | C2: 2018 | E2: =WEEKNUM(E1,2) -> 22 | F2: =WEEKNUM(F1,2) -> 22 | G2: 22 | H2: 23 | I2: 23 | J2: 23 | K2: 23 | L2: 23 | M2: 23 | N2: 23 | O2: 24 | P2: 24 | Q2: 24 | R2: 24 | S2: 24 | T2: 24 | U2: 24 | V2: 25 | W2: 25 | X2: 25 | Y2: 25 | Z2: 25 | AA2: 25 | AB2: 25 | AC2: 26 | AD2: 26 | AE2: 26 | AF2: 26 | AG2: 26 | AH2: 26 | AI2: 26
B3: 6 | E3: =LEFT(TEXT(E1,"ttt"),2) -> Fr | F3: =LEFT(TEXT(F1,"ttt"),2) -> Sa | G3: So | H3: Mo | I3: Di | J3: Mi | K3: Do | L3: Fr | M3: Sa | N3: So | O3: Mo | P3: Di | Q3: Mi | R3: Do | S3: Fr | T3: Sa | U3: So | V3: Mo | W3: Di | X3: Mi | Y3: Do | Z3: Fr | AA3: Sa | AB3: So | AC3: Mo | AD3: Di | AE3: Mi | AF3: Do | AG3: Fr | AH3: Sa | AI3: So
A4: nr | B4: last name | C4: first name | D4: month | E4: =DAY(E1) -> 1 | F4: =DAY(F1) -> 2 | G4: 3 | H4: 4 | I4: 5 | J4: 6 | K4: 7 | L4: 8 | M4: 9 | N4: 10 | O4: 11 | P4: 12 | Q4: 13 | R4: 14 | S4: 15 | T4: 16 | U4: 17 | V4: 18 | W4: 19 | X4: 20 | Y4: 21 | Z4: 22 | AA4: 23 | AB4: 24 | AC4: 25 | AD4: 26 | AE4: 27 | AF4: 28 | AG4: 29 | AH4: 30 | AI4: 1
A5: 1 | B5: Albrecht | C5: Josefine | D5: =SUM(E5:AI5) -> 37.5 | H5: 6.5 | I5: 7 | J5: 8.5 | K5: 7.5 | L5: 8
A6: 2 | B6: Adler | C6: Lucas | D6: =SUM(E6:AI6) -> 0
A7: 3 | B7: Bender | C7: Maximilian | D7: 0
A8: 4 | B8: Bachmann | C8: Stefan | D8: 0
A9: 5 | B9: Bischof | C9: Oliver | D9: 0
A10: 6 | B10: Brecht | C10: Sebastian | D10: 0
A11: 7 | B11: Blankenburg | C11: Tanja | D11: 0
A12: 8 | B12: Dieckmann | C12: Thomas | D12: 0
A13: 9 | B13: Diefenbach | C13: Maike | D13: 0
A14: 10 | B14: Dunker | C14: Torben | D14: 0
A15: 11 | B15: Dabrowski | C15: Philip | D15: 0
A16: 12 | B16: Fritsch | C16: Romy | D16: 0
A17: 13 | B17: Frisch | C17: Tommy | D17: 0
A18: 14 | B18: Fichter | C18: Tamara | D18: 0
A19: 15 | B19: Hamann | C19: Michaela | D19: 0
A20: 16 | B20: Kluge | C20: Tina | D20: 0
A21: 17 | B21: Kellner | C21: Marleen | D21: 0
A22: 18 | B22: Meyer | C22: Mira | D22: 0
A23: 19 | B23: Maurer | C23: Wilhelm | D23: 0
A24: 20 | B24: Penner | C24: Sebastian | D24: 0
A25: 21 | B25: Teschner | C25: Matthias | D25: 0
A26: 22 | B26: Topp | C26: Marco | D26: 0
A27: 23 | B27: Uhlmann | C27: Wiebke | D27: 0
Q32: confirmed:
R33: Andreas Stern

Sheet 2018 Jun
E1: =DATE(C2,B3,1) -> 2018-06-01 | F1: =E1+1 -> 2018-06-02 | G1: =F1+1 -> 2018-06-03 | H1: 2018-06-04 | I1: 2018-06-05 | J1: 2018-06-06 | K1: 2018-06-07 | L1: 2018-06-08 | M1: 2018-06-09 | N1: 2018-06-10 | O1: 2018-06-11 | P1: 2018-06-12 | Q1: 2018-06-13 | R1: 2018-06-14 | S1: 2018-06-15 | T1: 2018-06-16 | U1: 2018-06-17 | V1: 2018-06-18 | W1: 2018-06-19 | X1: 2018-06-20 | Y1: 2018-06-21 | Z1: 2018-06-22 | AA1: 2018-06-23 | AB1: 2018-06-24 | AC1: 2018-06-25 | AD1: 2018-06-26 | AE1: 2018-06-27 | AF1: 2018-06-28 | AG1: 2018-06-29 | AH1: 2018-06-30 | AI1: 2018-07-01
B2: =DATE(C2,B3,1) -> 2018-06-01 | C2: 2018 | E2: =WEEKNUM(E1,2) -> 22 | F2: =WEEKNUM(F1,2) -> 22 | G2: 22 | H2: 23 | I2: 23 | J2: 23 | K2: 23 | L2: 23 | M2: 23 | N2: 23 | O2: 24 | P2: 24 | Q2: 24 | R2: 24 | S2: 24 | T2: 24 | U2: 24 | V2: 25 | W2: 25 | X2: 25 | Y2: 25 | Z2: 25 | AA2: 25 | AB2: 25 | AC2: 26 | AD2: 26 | AE2: 26 | AF2: 26 | AG2: 26 | AH2: 26 | AI2: 26
B3: 6 | E3: =LEFT(TEXT(E1,"ttt"),2) -> Fr | F3: =LEFT(TEXT(F1,"ttt"),2) -> Sa | G3: So | H3: Mo | I3: Di | J3: Mi | K3: Do | L3: Fr | M3: Sa | N3: So | O3: Mo | P3: Di | Q3: Mi | R3: Do | S3: Fr | T3: Sa | U3: So | V3: Mo | W3: Di | X3: Mi | Y3: Do | Z3: Fr | AA3: Sa | AB3: So | AC3: Mo | AD3: Di | AE3: Mi | AF3: Do | AG3: Fr | AH3: Sa | AI3: So
A4: nr | B4: last name | C4: first name | D4: month | E4: =DAY(E1) -> 1 | F4: =DAY(F1) -> 2 | G4: 3 | H4: 4 | I4: 5 | J4: 6 | K4: 7 | L4: 8 | M4: 9 | N4: 10 | O4: 11 | P4: 12 | Q4: 13 | R4: 14 | S4: 15 | T4: 16 | U4: 17 | V4: 18 | W4: 19 | X4: 20 | Y4: 21 | Z4: 22 | AA4: 23 | AB4: 24 | AC4: 25 | AD4: 26 | AE4: 27 | AF4: 28 | AG4: 29 | AH4: 30 | AI4: 1
A5: 1 | B5: Albrecht | C5: Josefine | D5: =SUM(E5:AI5) -> 151.4823563 | E5: 5.420029402 | H5: 5.666297436 | I5: 6.424235106 | J5: 7.088580132 | K5: 7.927387476 | L5: 8.574266911 | O5: 6.41140008 | P5: 6.923895359 | Q5: 7.677098989 | R5: 5.645044327 | S5: 7.540549517 | V5: 8.664075851 | W5: 7.897792101 | X5: 8.63603735 | Y5: 6.641648054 | Z5: 8.407883644 | AC5: 8.956501722 | AD5: 5.918553352 | AE5: 7.086469889 | AF5: 8.933338642 | AG5: 5.041270971
A6: 2 | B6: Adler | C6: Lucas | D6: =SUM(E6:AI6) -> 144.5569177 | E6: 5.079087257 | H6: 5.402223349 | I6: 5.36746788 | J6: 8.914019823 | K6: 8.986951351 | L6: 6.862282515 | O6: 8.801118374 | P6: 6.157116652 | Q6: 6.228512764 | R6: 7.100378275 | S6: 6.221874714 | V6: 8.190958261 | W6: 6.569183826 | X6: 7.533607244 | Y6: 5.978305817 | Z6: 8.149911165 | AC6: 5.095603943 | AD6: 8.728955507 | AE6: 7.169234753 | AF6: 5.930865049 | AG6: 6.089259148
A7: 3 | B7: Bender | C7: Maximilian | D7: 146.6435688 | E7: 6.505960703 | H7: 8.677315712 | I7: 8.799104929 | J7: 5.313286304 | K7: 8.013152838 | L7: 7.632137299 | O7: 5.321109533 | P7: 6.641525269 | Q7: 5.246892214 | R7: 8.224006176 | S7: 7.397349119 | V7: 6.947963238 | W7: 8.002852201 | X7: 7.508887291 | Y7: 6.418937922 | Z7: 7.626623631 | AC7: 5.557491541 | AD7: 5.053644657 | AE7: 7.169961691 | AF7: 8.443220139 | AG7: 6.142146349
A8: 4 | B8: Bachmann | C8: Stefan | D8: 144.8472176 | E8: 8.251617908 | H8: 5.254273653 | I8: 5.669238567 | J8: 7.973730803 | K8: 5.271727562 | L8: 8.455063105 | O8: 5.970751762 | P8: 6.890003443 | Q8: 7.489885807 | R8: 8.211763144 | S8: 8.166143417 | V8: 8.234685659 | W8: 7.246454239 | X8: 6.58373189 | Y8: 5.041444302 | Z8: 6.699566603 | AC8: 8.444722652 | AD8: 8.83839488 | AE8: 5.251969337 | AF8: 5.181894541 | AG8: 5.720154285
A9: 5 | B9: Bischof | C9: Oliver | D9: 140.5865691 | E9: 5.04538703 | H9: 8.565306187 | I9: 5.210569143 | J9: 6.249162674 | K9: 5.018416643 | L9: 8.594018459 | O9: 5.631030321 | P9: 6.033917904 | Q9: 7.625435591 | R9: 8.228432655 | S9: 8.700197458 | V9: 5.738614082 | W9: 6.108892679 | X9: 8.898235798 | Y9: 7.590610266 | Z9: 5.021255493 | AC9: 6.988654852 | AD9: 6.348270416 | AE9: 5.442116976 | AF9: 7.464656353 | AG9: 6.08338809
A10: 6 | B10: Brecht | C10: Sebastian | D10: 149.2384734 | E10: 5.847751617 | H10: 7.975376844 | I10: 7.018300056 | J10: 6.940183878 | K10: 7.117435932 | L10: 5.74251914 | O10: 5.890038013 | P10: 8.972106695 | Q10: 7.396633148 | R10: 6.894135714 | S10: 8.799212933 | V10: 6.275426149 | W10: 5.859839916 | X10: 5.261088133 | Y10: 8.806048393 | Z10: 7.11824441 | AC10: 6.490668297 | AD10: 8.692100763 | AE10: 7.157476902 | AF10: 8.432897329 | AG10: 6.550989151
A11: 7 | B11: Blankenburg | C11: Tanja | D11: 149.4788072 | E11: 5.112374544 | H11: 7.021278381 | I11: 5.532620668 | J11: 7.954650402 | K11: 5.646517515 | L11: 8.87601757 | O11: 7.495672941 | P11: 5.335539818 | Q11: 5.513382196 | R11: 8.896940708 | S11: 7.787687063 | V11: 8.233629704 | W11: 5.661927938 | X11: 7.667943954 | Y11: 7.363665819 | Z11: 7.659009457 | AC11: 7.642539263 | AD11: 6.859895229 | AE11: 8.632641554 | AF11: 7.701840401 | AG11: 6.883032084
A12: 8 | B12: Dieckmann | C12: Thomas | D12: 140.0825834 | E12: 6.148952007 | H12: 6.361889124 | I12: 6.069284916 | J12: 5.919549704 | K12: 7.563718796 | L12: 5.185557604 | O12: 5.323228836 | P12: 8.299880266 | Q12: 6.400750637 | R12: 6.224858046 | S12: 8.438557625 | V12: 8.779213667 | W12: 5.232674599 | X12: 5.366914988 | Y12: 5.794914722 | Z12: 8.071685553 | AC12: 7.902721882 | AD12: 5.000735998 | AE12: 6.604110718 | AF12: 8.819585085 | AG12: 6.573798656
A13: 9 | B13: Diefenbach | C13: Maike | D13: 147.9030163 | E13: 5.513655424 | H13: 5.256993771 | I13: 6.32894969 | J13: 8.616364479 | K13: 8.890100718 | L13: 8.832962513 | O13: 6.374479532 | P13: 6.297703266 | Q13: 6.406551123 | R13: 8.748664856 | S13: 8.174435854 | V13: 5.364253998 | W13: 5.049622774 | X13: 6.007312298 | Y13: 6.90824008 | Z13: 8.352477074 | AC13: 8.015452147 | AD13: 7.594470024 | AE13: 8.612110376 | AF13: 6.8054986 | AG13: 5.752717733
A14: 10 | B14: Dunker | C14: Torben | D14: 148.1594243 | E14: 8.404700279 | H14: 7.614707708 | I14: 7.304218292 | J14: 5.428399324 | K14: 7.31940794 | L14: 7.926970243 | O14: 6.031890392 | P14: 7.592287779 | Q14: 5.496470451 | R14: 6.390911341 | S14: 8.191935062 | V14: 6.837326288 | W14: 6.05670023 | X14: 8.005429983 | Y14: 8.100419998 | Z14: 7.596968889 | AC14: 7.872869492 | AD14: 6.111926317 | AE14: 5.862226009 | AF14: 6.323616743 | AG14: 7.690041542
A15: 11 | B15: Dabrowski | C15: Philip | D15: 143.3396347 | E15: 8.669487238 | H15: 8.823325157 | I15: 6.757240534 | J15: 7.133078098 | K15: 8.26354003 | L15: 5.483011246 | O15: 6.139245749 | P15: 8.288175583 | Q15: 5.906474352 | R15: 6.198491573 | S15: 5.939759016 | V15: 7.785607815 | W15: 7.864964247 | X15: 6.311940193 | Y15: 5.574400187 | Z15: 7.8060956 | AC15: 6.799257517 | AD15: 5.027916431 | AE15: 5.31188941 | AF15: 5.534999847 | AG15: 7.720734835
A16: 12 | B16: Fritsch | C16: Romy | D16: 151.5264606 | E16: 5.049292088 | H16: 8.774817705 | I16: 8.272752285 | J16: 6.907376051 | K16: 6.89338398 | L16: 8.258230448 | O16: 7.280762672 | P16: 8.732599497 | Q16: 6.991745472 | R16: 5.858817816 | S16: 8.369495392 | V16: 8.211208105 | W16: 7.679176331 | X16: 6.33187604 | Y16: 5.187255383 | Z16: 8.428683043 | AC16: 5.293536663 | AD16: 6.211432219 | AE16: 6.32253933 | AF16: 8.42689538 | AG16: 8.044584751
A17: 13 | B17: Frisch | C17: Tommy | D17: 150.6023524 | E17: 6.76013732 | H17: 7.006741047 | I17: 6.864093542 | J17: 7.152832031 | K17: 8.800984621 | L17: 7.560386181 | O17: 7.947167635 | P17: 6.718913555 | Q17: 8.171568632 | R17: 5.375418663 | S17: 6.631965876 | V17: 8.070048332 | W17: 5.685558558 | X17: 6.142710209 | Y17: 6.999566793 | Z17: 7.71575737 | AC17: 5.863797903 | AD17: 6.58073616 | AE17: 6.909682512 | AF17: 8.748589993 | AG17: 8.895695448
A18: 14 | B18: Fichter | C18: Tamara | D18: 144.6339793 | E18: 5.746759415 | H18: 8.299463987 | I18: 5.035525322 | J18: 7.750492334 | K18: 6.803560734 | L18: 5.976915121 | O18: 7.42174387 | P18: 8.000814199 | Q18: 5.232858658 | R18: 5.810187578 | S18: 6.724015713 | V18: 5.6430161 | W18: 5.718114376 | X18: 7.941193342 | Y18: 5.398285866 | Z18: 7.340723276 | AC18: 8.638447762 | AD18: 8.539945841 | AE18: 7.642612934 | AF18: 7.156490088 | AG18: 7.812812805
A19: 15 | B19: Hamann | C19: Michaela | D19: 154.1017835 | E19: 6.512992144 | H19: 5.178915024 | I19: 8.145571947 | J19: 7.938169003 | K19: 7.695030928 | L19: 8.271233559 | O19: 7.754513502 | P19: 6.176922798 | Q19: 5.383932352 | R19: 8.519039631 | S19: 8.563281775 | V19: 6.478653431 | W19: 8.243552923 | X19: 5.637897491 | Y19: 8.981560946 | Z19: 6.19654417 | AC19: 8.004941225 | AD19: 5.420745373 | AE19: 8.155703306 | AF19: 8.596751213 | AG19: 8.245830774
A20: 16 | B20: Kluge | C20: Tina | D20: 153.0809488 | E20: 6.138917446 | H20: 7.653948069 | I20: 7.185646534 | J20: 5.725051641 | K20: 6.238994598 | L20: 8.509751558 | O20: 8.930999756 | P20: 6.071706057 | Q20: 6.657157421 | R20: 6.717890501 | S20: 8.894259453 | V20: 6.306792021 | W20: 6.880637169 | X20: 8.772316217 | Y20: 6.538534641 | Z20: 7.378713369 | AC20: 7.921610355 | AD20: 8.500512838 | AE20: 5.846464157 | AF20: 8.395182848 | AG20: 7.815862179
A21: 17 | B21: Kellner | C21: Marleen | D21: 146.8122628 | E21: 7.0052917 | H21: 5.474460125 | I21: 5.248373747 | J21: 6.434493065 | K21: 8.451019526 | L21: 5.127607822 | O21: 8.345920801 | P21: 5.63324213 | Q21: 7.106767416 | R21: 5.329153061 | S21: 8.370394945 | V21: 6.68583107 | W21: 8.861182451 | X21: 6.75340414 | Y21: 5.992275953 | Z21: 7.913586617 | AC21: 8.333252668 | AD21: 6.968934059 | AE21: 8.714472055 | AF21: 7.29368639 | AG21: 6.768913031
A22: 18 | B22: Meyer | C22: Mira | D22: 146.3865037 | E22: 5.171536446 | H22: 5.794049978 | I22: 8.82330513 | J22: 8.65719533 | K22: 7.550118923 | L22: 7.67628932 | O22: 6.274198055 | P22: 5.653496504 | Q22: 7.548913002 | R22: 6.937853098 | S22: 8.426460743 | V22: 8.275259256 | W22: 6.359463215 | X22: 5.403095007 | Y22: 5.91229248 | Z22: 8.858052492 | AC22: 7.109424591 | AD22: 8.531579256 | AE22: 5.752299786 | AF22: 6.332640409 | AG22: 5.338980675
A23: 19 | B23: Maurer | C23: Wilhelm | D23: 143.8167675 | E23: 5.857488871 | H23: 8.171788216 | I23: 6.68662858 | J23: 7.916553974 | K23: 7.431957006 | L23: 5.234580994 | O23: 8.754317999 | P23: 6.105052948 | Q23: 7.407426119 | R23: 6.64349699 | S23: 5.715628386 | V23: 8.832053661 | W23: 6.026942015 | X23: 8.706118584 | Y23: 6.206974268 | Z23: 6.291048527 | AC23: 5.178291559 | AD23: 8.483450413 | AE23: 6.397237539 | AF23: 5.841928482 | AG23: 5.927802324
A24: 20 | B24: Penner | C24: Sebastian | D24: 150.1520538 | E24: 7.87363863 | H24: 6.414075136 | I24: 6.858504772 | J24: 6.258074522 | K24: 6.942103386 | L24: 8.968197107 | O24: 8.974867821 | P24: 6.642151117 | Q24: 6.873304844 | R24: 6.191480398 | S24: 6.748933792 | V24: 6.877244711 | W24: 6.182516098 | X24: 5.610842943 | Y24: 5.188352108 | Z24: 8.00258708 | AC24: 8.360917568 | AD24: 5.620663404 | AE24: 8.103375435 | AF24: 8.932211161 | AG24: 8.528011799
A25: 21 | B25: Teschner | C25: Matthias | D25: 145.3049643 | E25: 6.192233801 | H25: 7.152094364 | I25: 7.449319601 | J25: 7.588056564 | K25: 8.669062853 | L25: 7.405477047 | O25: 6.946471453 | P25: 8.145913601 | Q25: 6.621083021 | R25: 6.818608284 | S25: 5.003736734 | V25: 8.279717445 | W25: 6.987383127 | X25: 8.995399952 | Y25: 5.924209356 | Z25: 8.174236298 | AC25: 5.383533239 | AD25: 6.096710205 | AE25: 5.160023928 | AF25: 6.085074902 | AG25: 6.226618528
A26: 22 | B26: Topp | C26: Marco | D26: 143.9890189 | E26: 7.464920044 | H26: 6.835526228 | I26: 7.016922951 | J26: 5.965646982 | K26: 8.746338367 | L26: 8.219184637 | O26: 5.260883808 | P26: 5.666301489 | Q26: 8.563529968 | R26: 5.813702822 | S26: 8.474807262 | V26: 6.820725679 | W26: 5.890658855 | X26: 6.073508024 | Y26: 6.468367577 | Z26: 5.098907709 | AC26: 8.471102715 | AD26: 5.333652735 | AE26: 8.776979923 | AF26: 5.288347006 | AG26: 7.739004135
A27: 23 | B27: Uhlmann | C27: Wiebke | D27: 148.8993814 | E27: 5.733983278 | H27: 5.811466217 | I27: 5.373330355 | J27: 6.509395123 | K27: 7.812941313 | L27: 5.480231285 | O27: 8.649157286 | P27: 7.539118767 | Q27: 5.630031824 | R27: 8.188807011 | S27: 8.989328146 | V27: 5.447126865 | W27: 8.229535818 | X27: 8.377687454 | Y27: 5.251372576 | Z27: 8.319833279 | AC27: 7.866915941 | AD27: 8.680631161 | AE27: 6.742302656 | AF27: 6.463646889 | AG27: 7.802538157
Q32: confirmed:
R33: Andreas Stern

Sheet 2018 Jul
E1: =DATE(C2,B3,1) -> 2018-07-01 | F1: =E1+1 -> 2018-07-02 | G1: =F1+1 -> 2018-07-03 | H1: 2018-07-04 | I1: 2018-07-05 | J1: 2018-07-06 | K1: 2018-07-07 | L1: 2018-07-08 | M1: 2018-07-09 | N1: 2018-07-10 | O1: 2018-07-11 | P1: 2018-07-12 | Q1: 2018-07-13 | R1: 2018-07-14 | S1: 2018-07-15 | T1: 2018-07-16 | U1: 2018-07-17 | V1: 2018-07-18 | W1: 2018-07-19 | X1: 2018-07-20 | Y1: 2018-07-21 | Z1: 2018-07-22 | AA1: 2018-07-23 | AB1: 2018-07-24 | AC1: 2018-07-25 | AD1: 2018-07-26 | AE1: 2018-07-27 | AF1: 2018-07-28 | AG1: 2018-07-29 | AH1: 2018-07-30 | AI1: 2018-07-31
B2: =DATE(C2,B3,1) -> 2018-07-01 | C2: 2018 | E2: =WEEKNUM(E1,2) -> 26 | F2: =WEEKNUM(F1,2) -> 27 | G2: 27 | H2: 27 | I2: 27 | J2: 27 | K2: 27 | L2: 27 | M2: 28 | N2: 28 | O2: 28 | P2: 28 | Q2: 28 | R2: 28 | S2: 28 | T2: 29 | U2: 29 | V2: 29 | W2: 29 | X2: 29 | Y2: 29 | Z2: 29 | AA2: 30 | AB2: 30 | AC2: 30 | AD2: 30 | AE2: 30 | AF2: 30 | AG2: 30 | AH2: 31 | AI2: 31
B3: 7 | E3: =LEFT(TEXT(E1,"ttt"),2) -> So | F3: =LEFT(TEXT(F1,"ttt"),2) -> Mo | G3: Di | H3: Mi | I3: Do | J3: Fr | K3: Sa | L3: So | M3: Mo | N3: Di | O3: Mi | P3: Do | Q3: Fr | R3: Sa | S3: So | T3: Mo | U3: Di | V3: Mi | W3: Do | X3: Fr | Y3: Sa | Z3: So | AA3: Mo | AB3: Di | AC3: Mi | AD3: Do | AE3: Fr | AF3: Sa | AG3: So | AH3: Mo | AI3: Di
A4: nr | B4: last name | C4: first name | D4: month | E4: =DAY(E1) -> 1 | F4: =DAY(F1) -> 2 | G4: 3 | H4: 4 | I4: 5 | J4: 6 | K4: 7 | L4: 8 | M4: 9 | N4: 10 | O4: 11 | P4: 12 | Q4: 13 | R4: 14 | S4: 15 | T4: 16 | U4: 17 | V4: 18 | W4: 19 | X4: 20 | Y4: 21 | Z4: 22 | AA4: 23 | AB4: 24 | AC4: 25 | AD4: 26 | AE4: 27 | AF4: 28 | AG4: 29 | AH4: 30 | AI4: 31
A5: 1 | B5: Albrecht | C5: Josefine | D5: =SUM(E5:AI5) -> 155.9456832 | F5: 5.105415821 | G5: 6.17253089 | H5: 6.563304901 | I5: 8.784623384 | J5: 6.209170818 | M5: 6.875874758 | N5: 7.100852489 | O5: 8.519373655 | P5: 8.160464287 | Q5: 6.689640284 | T5: 8.371451378 | U5: 5.051582575 | V5: 8.654592991 | W5: 5.52638793 | X5: 8.104867935 | AA5: 6.536859274 | AB5: 8.271360397 | AC5: 8.954234362 | AD5: 5.87772131 | AE5: 5.444306135 | AH5: 5.998040676 | AI5: 8.973026991
A6: 2 | B6: Adler | C6: Lucas | D6: =SUM(E6:AI6) -> 144.4433143 | F6: 5.192435026 | G6: 5.851088524 | H6: 8.734192133 | I6: 7.138197422 | J6: 6.789380789 | M6: 6.009066105 | N6: 6.240770102 | O6: 6.117330551 | P6: 5.120852709 | Q6: 7.168088436 | T6: 6.57843709 | U6: 7.543778896 | V6: 7.433407545 | W6: 5.909283638 | X6: 5.922689676 | AA6: 7.876740456 | AB6: 5.73494935 | AC6: 6.397049427 | AD6: 7.259361029 | AE6: 6.273578644 | AH6: 5.612996101 | AI6: 7.539640665
A7: 3 | B7: Bender | C7: Maximilian | D7: 143.1677558 | F7: 5.355623245 | G7: 6.315856218 | H7: 5.922524929 | I7: 6.402577162 | J7: 7.468266487 | M7: 6.299706221 | N7: 5.007500648 | O7: 5.087236643 | P7: 5.04935503 | Q7: 8.217422247 | T7: 6.535091877 | U7: 6.94237113 | V7: 6.758087158 | W7: 5.052846193 | X7: 5.72887373 | AA7: 8.130669832 | AB7: 8.733104229 | AC7: 5.632170439 | AD7: 6.157919884 | AE7: 7.598182917 | AH7: 7.21335268 | AI7: 7.559016943
A8: 4 | B8: Bachmann | C8: Stefan | D8: 144.2233016 | F8: 5.21296525 | G8: 8.361713886 | H8: 5.69388938 | I8: 6.568656921 | J8: 5.425275087 | M8: 5.007488251 | N8: 6.072922945 | O8: 6.831332684 | P8: 8.425314665 | Q8: 5.71958828 | T8: 7.594050169 | U8: 6.300448418 | V8: 5.69131875 | W8: 7.869997501 | X8: 5.526872396 | AA8: 8.802633762 | AB8: 5.0605371 | AC8: 5.339090347 | AD8: 7.535681963 | AE8: 8.104417324 | AH8: 7.007087708 | AI8: 6.072018862
A9: 5 | B9: Bischof | C9: Oliver | D9: 149.6919677 | F9: 7.712356091 | G9: 8.985338926 | H9: 5.21221447 | I9: 6.20644784 | J9: 5.375574589 | M9: 7.065948725 | N9: 5.087019444 | O9: 5.702436209 | P9: 7.359376907 | Q9: 6.495757341 | T9: 8.048818588 | U9: 5.251925707 | V9: 8.035367489 | W9: 7.914421797 | X9: 5.566430092 | AA9: 7.327419996 | AB9: 6.927197456 | AC9: 8.220266581 | AD9: 8.406765461 | AE9: 6.938434362 | AH9: 5.172149181 | AI9: 6.680300474
A10: 6 | B10: Brecht | C10: Sebastian | D10: 164.475045 | F10: 8.696603537 | G10: 7.317640305 | H10: 6.001551867 | I10: 8.584523678 | J10: 7.782517195 | M10: 7.471444607 | N10: 7.612995863 | O10: 8.943211555 | P10: 7.170698404 | Q10: 7.40916872 | T10: 5.777391672 | U10: 8.321419239 | V10: 8.402938604 | W10: 5.6547966 | X10: 7.876847506 | AA10: 6.520629883 | AB10: 8.745442629 | AC10: 7.43501997 | AD10: 7.559351683 | AE10: 8.393557549 | AH10: 5.495127678 | AI10: 7.302166224
A11: 7 | B11: Blankenburg | C11: Tanja | D11: 150.4500816 | F11: 8.354416847 | G11: 7.384561777 | H11: 5.091888905 | I11: 7.170570135 | J11: 6.53030777 | M11: 5.943858862 | N11: 7.475730896 | O11: 6.215527773 | P11: 7.781783581 | Q11: 5.14204669 | T11: 5.531619549 | U11: 7.548819304 | V11: 8.541213036 | W11: 5.663330317 | X11: 7.863966465 | AA11: 5.958622217 | AB11: 7.559053898 | AC11: 7.453599691 | AD11: 6.683431625 | AE11: 6.398623705 | AH11: 7.963053226 | AI11: 6.194055319
A12: 8 | B12: Dieckmann | C12: Thomas | D12: 150.251889 | F12: 6.995858431 | G12: 6.857387066 | H12: 6.198408842 | I12: 6.978857994 | J12: 6.479728937 | M12: 6.137354851 | N12: 6.008907557 | O12: 5.615412235 | P12: 7.752237082 | Q12: 7.471784592 | T12: 6.256116629 | U12: 5.066255569 | V12: 6.691283464 | W12: 8.598489285 | X12: 8.214039564 | AA12: 5.480771542 | AB12: 5.919762373 | AC12: 7.578484535 | AD12: 7.233171701 | AE12: 6.921608448 | AH12: 8.183317184 | AI12: 7.61265111
A13: 9 | B13: Diefenbach | C13: Maike | D13: 158.6580398 | F13: 6.735266209 | G13: 8.05133605 | H13: 6.946893692 | I13: 8.421866655 | J13: 8.16180563 | M13: 6.120906115 | N13: 5.768208981 | O13: 8.854264021 | P13: 7.573502541 | Q13: 8.250498056 | T13: 6.871281624 | U13: 8.894056559 | V13: 8.784748554 | W13: 7.334453344 | X13: 5.585929871 | AA13: 6.729079962 | AB13: 8.50522995 | AC13: 6.196397066 | AD13: 6.310031414 | AE13: 6.562948942 | AH13: 6.506719112 | AI13: 5.492615461
A14: 10 | B14: Dunker | C14: Torben | D14: 156.6687019 | F14: 6.199810743 | G14: 5.982022285 | H14: 5.286871195 | I14: 7.842815876 | J14: 7.836948156 | M14: 7.617859364 | N14: 7.500617743 | O14: 7.275272369 | P14: 6.163064241 | Q14: 8.749080181 | T14: 6.521405458 | U14: 8.929336071 | V14: 8.189379454 | W14: 5.015620232 | X14: 5.076992273 | AA14: 6.315962791 | AB14: 8.526336908 | AC14: 7.469038486 | AD14: 8.450422049 | AE14: 6.476259232 | AH14: 6.728638649 | AI14: 8.51494813
A15: 11 | B15: Dabrowski | C15: Philip | D15: 140.667527 | F15: 5.120132446 | G15: 5.355748415 | H15: 7.441138744 | I15: 6.316019773 | J15: 7.072894096 | M15: 7.153944731 | N15: 8.335639 | O15: 8.627891779 | P15: 5.64111948 | Q15: 5.12454772 | T15: 5.683374882 | U15: 7.448495626 | V15: 6.329053879 | W15: 5.255885363 | X15: 5.530019283 | AA15: 6.902434587 | AB15: 5.303658962 | AC15: 8.205708265 | AD15: 5.252476692 | AE15: 6.383039713 | AH15: 5.243332386 | AI15: 6.940971136
A16: 12 | B16: Fritsch | C16: Romy | D16: 156.2846878 | F16: 7.663410425 | G16: 6.264147282 | H16: 6.587953329 | I16: 5.415258408 | J16: 5.936175585 | M16: 6.626428604 | N16: 7.355674028 | O16: 7.355256557 | P16: 7.007885695 | Q16: 6.320248604 | T16: 8.316635847 | U16: 6.245713234 | V16: 7.882059336 | W16: 7.471954823 | X16: 7.97129035 | AA16: 8.488453388 | AB16: 5.865672827 | AC16: 8.899253845 | AD16: 6.342908144 | AE16: 7.155013561 | AH16: 8.526355743 | AI16: 6.586938143
A17: 13 | B17: Frisch | C17: Tommy | D17: 146.5050323 | F17: 6.951245785 | G17: 7.638832808 | H17: 6.772957802 | I17: 5.529268503 | J17: 6.161369801 | M17: 5.936010599 | N17: 6.22230196 | O17: 6.122073889 | P17: 7.077987671 | Q17: 5.774907351 | T17: 8.223361969 | U17: 7.845895052 | V17: 6.718898296 | W17: 6.000105619 | X17: 6.645545006 | AA17: 6.127337217 | AB17: 5.847010612 | AC17: 7.41070199 | AD17: 5.579462528 | AE17: 7.785379171 | AH17: 5.820109844 | AI17: 8.314268827
A18: 14 | B18: Fichter | C18: Tamara | D18: 155.9236991 | F18: 5.927398443 | G18: 6.010005951 | H18: 5.36432004 | I18: 6.260486126 | J18: 7.822546721 | M18: 5.530097485 | N18: 7.945383787 | O18: 8.236315727 | P18: 5.032276392 | Q18: 8.211016178 | T18: 5.041679621 | U18: 7.375097752 | V18: 5.83838439 | W18: 8.009088516 | X18: 8.305106401 | AA18: 7.889448166 | AB18: 7.406489611 | AC18: 7.869954586 | AD18: 6.169632673 | AE18: 8.371048927 | AH18: 8.89751339 | AI18: 8.410408258
A19: 15 | B19: Hamann | C19: Michaela | D19: 162.5984123 | F19: 6.416197777 | G19: 8.866867304 | H19: 8.009092808 | I19: 7.040830374 | J19: 8.894609451 | M19: 7.553743124 | N19: 5.995183945 | O19: 6.559436083 | P19: 6.529462337 | Q19: 8.058235884 | T19: 8.126832485 | U19: 5.206585646 | V19: 5.111599922 | W19: 8.350775003 | X19: 8.929913044 | AA19: 6.279245615 | AB19: 8.654175282 | AC19: 8.582587957 | AD19: 5.374576569 | AE19: 8.044350863 | AH19: 7.778799534 | AI19: 8.23531127
A20: 16 | B20: Kluge | C20: Tina | D20: 163.4320495 | F20: 7.903853655 | G20: 8.249719143 | H20: 7.083958387 | I20: 6.149098396 | J20: 7.721128702 | M20: 7.605324745 | N20: 6.836611032 | O20: 8.76937151 | P20: 8.042602301 | Q20: 6.555751801 | T20: 7.547824621 | U20: 8.238967896 | V20: 7.709691286 | W20: 6.697181225 | X20: 6.465372801 | AA20: 8.766841412 | AB20: 6.736891508 | AC20: 5.908576012 | AD20: 7.721092463 | AE20: 7.937201023 | AH20: 8.276437759 | AI20: 6.508551836
A21: 17 | B21: Kellner | C21: Marleen | D21: 153.190953 | F21: 6.594425678 | G21: 8.676295996 | H21: 5.871803284 | I21: 8.880948305 | J21: 5.112304211 | M21: 5.9104321 | N21: 6.921710491 | O21: 6.000738859 | P21: 6.761260033 | Q21: 6.331436396 | T21: 5.352862358 | U21: 7.666767359 | V21: 7.986010075 | W21: 7.160157919 | X21: 7.278234482 | AA21: 6.19284606 | AB21: 7.094873428 | AC21: 7.270163774 | AD21: 6.476533413 | AE21: 8.795910597 | AH21: 6.243180752 | AI21: 8.612057447
A22: 18 | B22: Meyer | C22: Mira | D22: 152.8738258 | F22: 6.202364683 | G22: 6.930644035 | H22: 6.199474573 | I22: 5.016977787 | J22: 5.144342184 | M22: 5.371977329 | N22: 5.774198294 | O22: 7.749925613 | P22: 5.091567278 | Q22: 6.587701321 | T22: 8.198321581 | U22: 6.68580389 | V22: 8.86826396 | W22: 5.890816689 | X22: 8.909578562 | AA22: 6.356076241 | AB22: 8.531164408 | AC22: 7.965649128 | AD22: 8.114200354 | AE22: 8.60307312 | AH22: 6.398236275 | AI22: 8.283468485
A23: 19 | B23: Maurer | C23: Wilhelm | D23: 156.9429328 | F23: 8.556821823 | G23: 8.684275866 | H23: 8.354100704 | I23: 8.519562483 | J23: 8.532319069 | M23: 6.989689589 | N23: 6.850605965 | O23: 6.561674356 | P23: 5.805943012 | Q23: 8.496577978 | T23: 6.705498219 | U23: 8.298431158 | V23: 5.30462265 | W23: 6.972169161 | X23: 5.661059856 | AA23: 7.160100222 | AB23: 6.942389965 | AC23: 5.875986814 | AD23: 6.422533989 | AE23: 7.566883326 | AH23: 6.606564045 | AI23: 6.075122595
A24: 20 | B24: Penner | C24: Sebastian | D24: 152.6637008 | F24: 8.471826792 | G24: 8.688858509 | H24: 8.318015814 | I24: 6.377399445 | J24: 6.765008211 | M24: 6.380439758 | N24: 8.429013491 | O24: 6.720794201 | P24: 8.804384947 | Q24: 5.832346916 | T24: 8.069555998 | U24: 6.059447289 | V24: 8.061630487 | W24: 7.562986851 | X24: 6.148191214 | AA24: 5.589128971 | AB24: 5.407197714 | AC24: 5.264410019 | AD24: 6.852832079 | AE24: 7.420270443 | AH24: 5.486297607 | AI24: 5.953664064
A25: 21 | B25: Teschner | C25: Matthias | D25: 157.2206848 | F25: 6.793467999 | G25: 5.939848661 | H25: 7.538107872 | I25: 8.770607233 | J25: 7.334677219 | M25: 8.63474679 | N25: 6.170877934 | O25: 7.520288229 | P25: 7.06252861 | Q25: 5.311442614 | T25: 6.308366776 | U25: 6.294905901 | V25: 8.503808498 | W25: 6.28604579 | X25: 8.005238533 | AA25: 6.068917036 | AB25: 5.629433632 | AC25: 7.748171091 | AD25: 7.969749928 | AE25: 6.694885015 | AH25: 8.21929121 | AI25: 8.415278196
A26: 22 | B26: Topp | C26: Marco | D26: 161.1372459 | F26: 5.63286376 | G26: 8.573770523 | H26: 7.636817217 | I26: 8.561265469 | J26: 8.930020094 | M26: 7.826848507 | N26: 7.786621809 | O26: 8.477967262 | P26: 5.720575571 | Q26: 8.878891468 | T26: 5.167845011 | U26: 7.345585346 | V26: 5.457484961 | W26: 8.092201233 | X26: 7.492703676 | AA26: 6.2566185 | AB26: 8.549531221 | AC26: 6.478534222 | AD26: 6.028998137 | AE26: 8.310759544 | AH26: 6.439791679 | AI26: 7.491550684
A27: 23 | B27: Uhlmann | C27: Wiebke | D27: 156.573159 | F27: 7.34449482 | G27: 5.390737772 | H27: 8.991543293 | I27: 6.086932898 | J27: 6.198669434 | M27: 7.718375921 | N27: 8.223926544 | O27: 8.190026522 | P27: 7.724223614 | Q27: 8.84069705 | T27: 5.407409191 | U27: 6.29703021 | V27: 6.687174797 | W27: 6.335644007 | X27: 7.15290308 | AA27: 6.057449579 | AB27: 6.582121372 | AC27: 8.162809134 | AD27: 8.569932938 | AE27: 7.513869524 | AH27: 5.076235294 | AI27: 8.020951986
Q32: confirmed:
R33: Andreas Stern

Sheet 2018 Aug
E1: =DATE(C2,B3,1) -> 2018-08-01 | F1: =E1+1 -> 2018-08-02 | G1: =F1+1 -> 2018-08-03 | H1: 2018-08-04 | I1: 2018-08-05 | J1: 2018-08-06 | K1: 2018-08-07 | L1: 2018-08-08 | M1: 2018-08-09 | N1: 2018-08-10 | O1: 2018-08-11 | P1: 2018-08-12 | Q1: 2018-08-13 | R1: 2018-08-14 | S1: 2018-08-15 | T1: 2018-08-16 | U1: 2018-08-17 | V1: 2018-08-18 | W1: 2018-08-19 | X1: 2018-08-20 | Y1: 2018-08-21 | Z1: 2018-08-22 | AA1: 2018-08-23 | AB1: 2018-08-24 | AC1: 2018-08-25 | AD1: 2018-08-26 | AE1: 2018-08-27 | AF1: 2018-08-28 | AG1: 2018-08-29 | AH1: 2018-08-30 | AI1: 2018-08-31
B2: =DATE(C2,B3,1) -> 2018-08-01 | C2: 2018 | E2: =WEEKNUM(E1,2) -> 31 | F2: =WEEKNUM(F1,2) -> 31 | G2: 31 | H2: 31 | I2: 31 | J2: 32 | K2: 32 | L2: 32 | M2: 32 | N2: 32 | O2: 32 | P2: 32 | Q2: 33 | R2: 33 | S2: 33 | T2: 33 | U2: 33 | V2: 33 | W2: 33 | X2: 34 | Y2: 34 | Z2: 34 | AA2: 34 | AB2: 34 | AC2: 34 | AD2: 34 | AE2: 35 | AF2: 35 | AG2: 35 | AH2: 35 | AI2: 35
B3: 8 | E3: =LEFT(TEXT(E1,"ttt"),2) -> Mi | F3: =LEFT(TEXT(F1,"ttt"),2) -> Do | G3: Fr | H3: Sa | I3: So | J3: Mo | K3: Di | L3: Mi | M3: Do | N3: Fr | O3: Sa | P3: So | Q3: Mo | R3: Di | S3: Mi | T3: Do | U3: Fr | V3: Sa | W3: So | X3: Mo | Y3: Di | Z3: Mi | AA3: Do | AB3: Fr | AC3: Sa | AD3: So | AE3: Mo | AF3: Di | AG3: Mi | AH3: Do | AI3: Fr
A4: nr | B4: last name | C4: first name | D4: month | E4: =DAY(E1) -> 1 | F4: =DAY(F1) -> 2 | G4: 3 | H4: 4 | I4: 5 | J4: 6 | K4: 7 | L4: 8 | M4: 9 | N4: 10 | O4: 11 | P4: 12 | Q4: 13 | R4: 14 | S4: 15 | T4: 16 | U4: 17 | V4: 18 | W4: 19 | X4: 20 | Y4: 21 | Z4: 22 | AA4: 23 | AB4: 24 | AC4: 25 | AD4: 26 | AE4: 27 | AF4: 28 | AG4: 29 | AH4: 30 | AI4: 31
A5: 1 | B5: Albrecht | C5: Josefine | D5: =SUM(E5:AI5) -> 160.5076964 | E5: 6.095083237 | F5: 7.127780199 | G5: 7.0122962 | J5: 6.928011179 | K5: 7.832817554 | L5: 7.985809088 | M5: 8.370418549 | N5: 5.320679903 | Q5: 6.629806519 | R5: 5.563298464 | S5: 7.681037426 | T5: 6.057505369 | U5: 6.146533012 | X5: 8.913008451 | Y5: 6.934668541 | Z5: 5.922844172 | AA5: 5.021154881 | AB5: 6.582341909 | AE5: 7.698175907 | AF5: 7.767617941 | AG5: 8.306501389 | AH5: 5.833552599 | AI5: 8.776753902
A6: 2 | B6: Adler | C6: Lucas | D6: =SUM(E6:AI6) -> 171.9610276 | E6: 7.662346601 | F6: 8.997460365 | G6: 8.264574289 | J6: 7.876269817 | K6: 8.383887053 | L6: 6.197508812 | M6: 7.458969355 | N6: 7.459837437 | Q6: 6.143909693 | R6: 7.634417057 | S6: 8.309419394 | T6: 5.529424667 | U6: 8.822436571 | X6: 7.859735489 | Y6: 6.02513814 | Z6: 8.123475552 | AA6: 7.484722853 | AB6: 8.539395332 | AE6: 7.87355113 | AF6: 7.302750587 | AG6: 5.810800791 | AH6: 8.739685535 | AI6: 5.461311102
A7: 3 | B7: Bender | C7: Maximilian | D7: 170.0243585 | E7: 8.792488575 | F7: 5.809066534 | G7: 6.314342499 | J7: 7.058225393 | K7: 8.362443924 | L7: 7.959822893 | M7: 5.176049709 | N7: 8.260533094 | Q7: 7.865949154 | R7: 6.160591841 | S7: 7.779213905 | T7: 8.829103708 | U7: 6.409569263 | X7: 6.487798929 | Y7: 6.667767048 | Z7: 7.813266516 | AA7: 7.009536743 | AB7: 8.591832399 | AE7: 7.586551666 | AF7: 8.008523226 | AG7: 6.171687603 | AH7: 8.99354434 | AI7: 7.916449547
A8: 4 | B8: Bachmann | C8: Stefan | D8: 151.0657959 | E8: 7.194108248 | F8: 5.59057951 | G8: 6.081900358 | J8: 7.319081306 | K8: 6.819090128 | L8: 6.386967182 | M8: 5.46517539 | N8: 6.509559631 | Q8: 6.944762945 | R8: 6.134914398 | S8: 8.960541964 | T8: 5.006244183 | U8: 5.905829191 | X8: 7.316871166 | Y8: 5.921244383 | Z8: 6.981829643 | AA8: 8.37215066 | AB8: 6.378160954 | AE8: 6.196007013 | AF8: 6.552008152 | AG8: 8.780553579 | AH8: 5.164270401 | AI8: 5.083945513
A9: 5 | B9: Bischof | C9: Oliver | D9: 165.7317517 | E9: 8.773024559 | F9: 6.529419184 | G9: 8.104567051 | J9: 7.349026918 | K9: 6.911681652 | L9: 5.806673765 | M9: 8.55179882 | N9: 7.115795374 | Q9: 8.261321068 | R9: 6.517288446 | S9: 5.791471958 | T9: 7.635343313 | U9: 5.436510086 | X9: 7.759584188 | Y9: 7.031225204 | Z9: 8.555072069 | AA9: 7.491040707 | AB9: 5.314369917 | AE9: 7.941926479 | AF9: 7.417797804 | AG9: 8.502621651 | AH9: 5.261938334 | AI9: 7.672253132
A10: 6 | B10: Brecht | C10: Sebastian | D10: 158.1735663 | E10: 5.884900808 | F10: 5.714082718 | G10: 6.324950457 | J10: 5.713816166 | K10: 7.517205954 | L10: 8.427000046 | M10: 5.876963854 | N10: 6.589025021 | Q10: 5.241286516 | R10: 8.982781887 | S10: 8.510014296 | T10: 6.739338875 | U10: 8.253385782 | X10: 6.783455849 | Y10: 7.495821238 | Z10: 8.314445972 | AA10: 8.044341803 | AB10: 6.102535248 | AE10: 7.223392248 | AF10: 6.592391968 | AG10: 5.135991335 | AH10: 6.030829906 | AI10: 6.675608397
A11: 7 | B11: Blankenburg | C11: Tanja | D11: 159.6449821 | E11: 8.114480495 | F11: 5.407276869 | G11: 7.278874397 | J11: 6.36410594 | K11: 7.667145729 | L11: 6.519006968 | M11: 8.852493763 | N11: 7.087363958 | Q11: 7.567234516 | R11: 8.129207373 | S11: 6.236946106 | T11: 7.990842104 | U11: 6.988921642 | X11: 5.116029024 | Y11: 8.214343548 | Z11: 7.31839633 | AA11: 5.278258324 | AB11: 5.841232538 | AE11: 7.770251274 | AF11: 7.866016626 | AG11: 6.95002985 | AH11: 5.850373983 | AI11: 5.236150742
A12: 8 | B12: Dieckmann | C12: Thomas | D12: 155.4870672 | E12: 5.014051676 | F12: 5.16988039 | G12: 7.060893774 | J12: 5.542499542 | K12: 8.994805574 | L12: 7.02643919 | M12: 7.837126493 | N12: 7.249106407 | Q12: 5.752444029 | R12: 7.172251701 | S12: 5.144817591 | T12: 5.836466312 | U12: 5.736901999 | X12: 8.95123148 | Y12: 5.853086233 | Z12: 6.213701248 | AA12: 6.538375139 | AB12: 8.367639065 | AE12: 5.303332567 | AF12: 7.694257259 | AG12: 8.858772993 | AH12: 7.240822792 | AI12: 6.928163767
A13: 9 | B13: Diefenbach | C13: Maike | D13: 155.1382868 | E13: 7.597038269 | F13: 5.346478701 | G13: 6.277358532 | J13: 5.261146784 | K13: 7.527609348 | L13: 5.61119628 | M13: 5.096292496 | N13: 7.216223955 | Q13: 7.151456833 | R13: 8.597880602 | S13: 5.530522823 | T13: 7.974915266 | U13: 8.331543922 | X13: 8.150120497 | Y13: 6.612721443 | Z13: 5.453306437 | AA13: 7.07562685 | AB13: 7.933864355 | AE13: 5.547447681 | AF13: 7.28454566 | AG13: 8.273281097 | AH13: 5.787141085 | AI13: 5.500567913
A14: 10 | B14: Dunker | C14: Torben | D14: 167.9441342 | E14: 7.917773008 | F14: 8.973994255 | G14: 5.325893641 | J14: 6.354783535 | K14: 6.692532301 | L14: 8.69416523 | M14: 7.637136698 | N14: 7.776272297 | Q14: 8.361505747 | R14: 5.011276722 | S14: 7.331474066 | T14: 8.607776642 | U14: 5.513573885 | X14: 7.167457581 | Y14: 8.14828229 | Z14: 8.144286633 | AA14: 8.588839293 | AB14: 7.745829582 | AE14: 8.621588469 | AF14: 5.24832058 | AG14: 5.43080163 | AH14: 8.939116001 | AI14: 5.711454153
A15: 11 | B15: Dabrowski | C15: Philip | D15: 160.1305807 | E15: 6.588037968 | F15: 5.147592306 | G15: 7.078443527 | J15: 6.086749792 | K15: 8.141113281 | L15: 6.117390871 | M15: 8.017417431 | N15: 7.959620237 | Q15: 8.425944805 | R15: 6.081724882 | S15: 5.801199913 | T15: 7.135872126 | U15: 5.81627512 | X15: 6.439464808 | Y15: 5.787241459 | Z15: 8.597223043 | AA15: 8.57903862 | AB15: 6.33442235 | AE15: 6.69401741 | AF15: 7.851088762 | AG15: 7.330621243 | AH15: 7.180851698 | AI15: 6.939229012
A16: 12 | B16: Fritsch | C16: Romy | D16: 165.5360699 | E16: 6.147364855 | F16: 7.085072994 | G16: 6.455185652 | J16: 6.211306572 | K16: 8.004398584 | L16: 7.948091984 | M16: 7.074571371 | N16: 7.542196274 | Q16: 7.348470449 | R16: 6.846139908 | S16: 6.251593828 | T16: 6.806046963 | U16: 5.539669752 | X16: 7.050145626 | Y16: 7.976349592 | Z16: 8.449067116 | AA16: 8.969629526 | AB16: 6.498184681 | AE16: 6.418852091 | AF16: 8.912144184 | AG16: 8.879146338 | AH16: 5.301094055 | AI16: 7.821347475
A17: 13 | B17: Frisch | C17: Tommy | D17: 157.005378 | E17: 5.129868507 | F17: 5.134866953 | G17: 5.271149158 | J17: 8.336978197 | K17: 6.770200253 | L17: 7.230187178 | M17: 8.822014809 | N17: 8.782854319 | Q17: 5.977704048 | R17: 6.762838602 | S17: 7.288570881 | T17: 5.785938025 | U17: 7.919281006 | X17: 7.716209173 | Y17: 7.876178741 | Z17: 8.547967196 | AA17: 5.90357542 | AB17: 6.216948271 | AE17: 6.377776623 | AF17: 6.315859556 | AG17: 6.272532463 | AH17: 6.999737024 | AI17: 5.566141605
A18: 14 | B18: Fichter | C18: Tamara | D18: 159.4228778 | E18: 5.51804328 | F18: 5.086032867 | G18: 5.678780794 | J18: 8.705177784 | K18: 8.697707891 | L18: 5.977275848 | M18: 7.576157808 | N18: 6.681491375 | Q18: 5.388112307 | R18: 5.114188671 | S18: 8.378046751 | T18: 8.070040703 | U18: 6.599827051 | X18: 5.306418419 | Y18: 7.276222467 | Z18: 6.933065891 | AA18: 8.726369619 | AB18: 6.29911232 | AE18: 8.098169088 | AF18: 8.709745407 | AG18: 7.086589098 | AH18: 7.147893429 | AI18: 6.368408918
A19: 15 | B19: Hamann | C19: Michaela | D19: 163.1400898 | E19: 6.855983257 | F19: 6.423811674 | G19: 7.830481529 | J19: 8.658529997 | K19: 6.360274315 | L19: 6.454925776 | M19: 7.022139072 | N19: 6.641706228 | Q19: 8.77777338 | R19: 6.204423666 | S19: 5.692434311 | T19: 6.561801195 | U19: 7.106229305 | X19: 7.302588701 | Y19: 8.83543539 | Z19: 5.777432203 | AA19: 5.714367867 | AB19: 7.654165506 | AE19: 8.019715309 | AF19: 8.343378305 | AG19: 5.31321764 | AH19: 8.241569281 | AI19: 7.347705841
A20: 16 | B20: Kluge | C20: Tina | D20: 154.2203722 | E20: 8.173393488 | F20: 6.443823338 | G20: 5.10779357 | J20: 5.93658638 | K20: 6.59860158 | L20: 7.132150173 | M20: 6.96144557 | N20: 7.472569466 | Q20: 7.188652754 | R20: 6.099694252 | S20: 6.066759348 | T20: 7.945991993 | U20: 5.726974249 | X20: 7.128994465 | Y20: 8.625751257 | Z20: 6.90057373 | AA20: 6.174458742 | AB20: 5.289084911 | AE20: 6.097985506 | AF20: 7.459331036 | AG20: 8.242796659 | AH20: 5.764761925 | AI20: 5.682197809
A21: 17 | B21: Kellner | C21: Marleen | D21: 154.9196951 | E21: 6.360040665 | F21: 5.954398394 | G21: 5.220948696 | J21: 5.56553483 | K21: 6.186085224 | L21: 6.154613256 | M21: 7.722862244 | N21: 7.230481386 | Q21: 7.843334198 | R21: 8.473832369 | S21: 5.85052824 | T21: 7.125784636 | U21: 6.900649071 | X21: 5.687098265 | Y21: 5.881899834 | Z21: 6.460880518 | AA21: 7.435579777 | AB21: 7.974900961 | AE21: 6.877981663 | AF21: 5.744893789 | AG21: 7.455209732 | AH21: 6.369208574 | AI21: 8.442948818
A22: 18 | B22: Meyer | C22: Mira | D22: 161.8341622 | E22: 7.79044795 | F22: 7.972317696 | G22: 6.236395121 | J22: 8.815536022 | K22: 5.418230772 | L22: 5.617884636 | M22: 8.722103357 | N22: 5.796625614 | Q22: 6.646057367 | R22: 6.767836094 | S22: 5.039136648 | T22: 5.862215042 | U22: 6.887877703 | X22: 8.545797348 | Y22: 5.802249193 | Z22: 8.020383358 | AA22: 7.53774333 | AB22: 8.830498695 | AE22: 7.405819654 | AF22: 7.904156685 | AG22: 6.311117411 | AH22: 7.297543049 | AI22: 6.606189489
A23: 19 | B23: Maurer | C23: Wilhelm | D23: 163.1097887 | E23: 5.64316988 | F23: 6.414890051 | G23: 5.453201294 | J23: 8.046975851 | K23: 7.451337814 | L23: 8.360469103 | M23: 7.737508297 | N23: 5.870682478 | Q23: 5.727944851 | R23: 7.906239271 | S23: 8.119389534 | T23: 5.882642984 | U23: 5.530415058 | X23: 8.116289377 | Y23: 6.514931202 | Z23: 8.896865606 | AA23: 7.912517548 | AB23: 5.887131929 | AE23: 5.084991455 | AF23: 8.476430178 | AG23: 8.542106152 | AH23: 7.886774778 | AI23: 7.646883965
A24: 20 | B24: Penner | C24: Sebastian | D24: 161.2155113 | E24: 8.050389528 | F24: 7.123328686 | G24: 7.084391356 | J24: 5.067704201 | K24: 6.594553232 | L24: 7.765869617 | M24: 6.691840887 | N24: 7.049747467 | Q24: 6.388957739 | R24: 5.051811218 | S24: 8.630109072 | T24: 8.431838512 | U24: 5.809313536 | X24: 7.097690105 | Y24: 5.483664274 | Z24: 6.394148827 | AA24: 7.102813959 | AB24: 7.341658115 | AE24: 7.587558985 | AF24: 7.921511173 | AG24: 8.386003256 | AH24: 8.102285385 | AI24: 6.058322191
A25: 21 | B25: Teschner | C25: Matthias | D25: 158.4640019 | E25: 5.264361382 | F25: 5.181293726 | G25: 6.718798161 | J25: 7.939736605 | K25: 5.216426373 | L25: 6.723097563 | M25: 6.906012535 | N25: 7.91530633 | Q25: 8.214900017 | R25: 7.383938074 | S25: 8.833338261 | T25: 7.586984396 | U25: 6.527357101 | X25: 5.077192068 | Y25: 5.490968704 | Z25: 7.192778826 | AA25: 7.901864529 | AB25: 8.241657972 | AE25: 5.512662411 | AF25: 8.277458906 | AG25: 5.014428139 | AH25: 6.931444407 | AI25: 8.411995411
A26: 22 | B26: Topp | C26: Marco | D26: 163.4140716 | E26: 7.499879599 | F26: 8.73074913 | G26: 6.105426073 | J26: 6.318426609 | K26: 8.024755239 | L26: 8.258325577 | M26: 8.981955767 | N26: 5.883149624 | Q26: 5.589198351 | R26: 6.9680686 | S26: 7.676804304 | T26: 8.458664894 | U26: 6.819864511 | X26: 5.219334602 | Y26: 5.965376139 | Z26: 7.202869892 | AA26: 7.763927221 | AB26: 7.583885193 | AE26: 6.207381964 | AF26: 6.184825897 | AG26: 7.81605649 | AH26: 6.422976971 | AI26: 7.732168913
A27: 23 | B27: Uhlmann | C27: Wiebke | D27: 165.4408004 | E27: 8.818982601 | F27: 7.397438765 | G27: 6.228096962 | J27: 8.942272902 | K27: 7.029294014 | L27: 5.479284525 | M27: 5.991405964 | N27: 7.543765783 | Q27: 7.588715076 | R27: 8.006263494 | S27: 5.216587067 | T27: 8.716317415 | U27: 7.654994488 | X27: 5.545361757 | Y27: 5.126266003 | Z27: 5.091021299 | AA27: 8.765040398 | AB27: 5.311397791 | AE27: 8.840773582 | AF27: 7.825195551 | AG27: 8.743605137 | AH27: 6.755872488 | AI27: 8.822847366
Q32: confirmed:
R33: Andreas Stern

Sheet 2018 Sep
E1: =DATE(C2,B3,1) -> 2018-09-01 | F1: =E1+1 -> 2018-09-02 | G1: =F1+1 -> 2018-09-03 | H1: 2018-09-04 | I1: 2018-09-05 | J1: 2018-09-06 | K1: 2018-09-07 | L1: 2018-09-08 | M1: 2018-09-09 | N1: 2018-09-10 | O1: 2018-09-11 | P1: 2018-09-12 | Q1: 2018-09-13 | R1: 2018-09-14 | S1: 2018-09-15 | T1: 2018-09-16 | U1: 2018-09-17 | V1: 2018-09-18 | W1: 2018-09-19 | X1: 2018-09-20 | Y1: 2018-09-21 | Z1: 2018-09-22 | AA1: 2018-09-23 | AB1: 2018-09-24 | AC1: 2018-09-25 | AD1: 2018-09-26 | AE1: 2018-09-27 | AF1: 2018-09-28 | AG1: 2018-09-29 | AH1: 2018-09-30 | AI1: 2018-10-01
B2: =DATE(C2,B3,1) -> 2018-09-01 | C2: 2018 | E2: =WEEKNUM(E1,2) -> 35 | F2: =WEEKNUM(F1,2) -> 35 | G2: 36 | H2: 36 | I2: 36 | J2: 36 | K2: 36 | L2: 36 | M2: 36 | N2: 37 | O2: 37 | P2: 37 | Q2: 37 | R2: 37 | S2: 37 | T2: 37 | U2: 38 | V2: 38 | W2: 38 | X2: 38 | Y2: 38 | Z2: 38 | AA2: 38 | AB2: 39 | AC2: 39 | AD2: 39 | AE2: 39 | AF2: 39 | AG2: 39 | AH2: 39 | AI2: 40
B3: 9 | E3: =LEFT(TEXT(E1,"ttt"),2) -> Sa | F3: =LEFT(TEXT(F1,"ttt"),2) -> So | G3: Mo | H3: Di | I3: Mi | J3: Do | K3: Fr | L3: Sa | M3: So | N3: Mo | O3: Di | P3: Mi | Q3: Do | R3: Fr | S3: Sa | T3: So | U3: Mo | V3: Di | W3: Mi | X3: Do | Y3: Fr | Z3: Sa | AA3: So | AB3: Mo | AC3: Di | AD3: Mi | AE3: Do | AF3: Fr | AG3: Sa | AH3: So | AI3: Mo
A4: nr | B4: last name | C4: first name | D4: month | E4: =DAY(E1) -> 1 | F4: =DAY(F1) -> 2 | G4: 3 | H4: 4 | I4: 5 | J4: 6 | K4: 7 | L4: 8 | M4: 9 | N4: 10 | O4: 11 | P4: 12 | Q4: 13 | R4: 14 | S4: 15 | T4: 16 | U4: 17 | V4: 18 | W4: 19 | X4: 20 | Y4: 21 | Z4: 22 | AA4: 23 | AB4: 24 | AC4: 25 | AD4: 26 | AE4: 27 | AF4: 28 | AG4: 29 | AH4: 30 | AI4: 1
A5: 1 | B5: Albrecht | C5: Josefine | D5: =SUM(E5:AI5) -> 131.1916766 | G5: 6.631224871 | H5: 5.720071316 | I5: 7.43132472 | J5: 7.504582405 | K5: 5.294935465 | N5: 5.743035316 | O5: 6.290300608 | P5: 7.879127979 | Q5: 6.376052618 | R5: 5.536968231 | U5: 8.128345251 | V5: 5.549285889 | W5: 5.752980471 | X5: 5.137748241 | Y5: 5.116938353 | AB5: 7.684947491 | AC5: 7.494902372 | AD5: 5.676657677 | AE5: 7.654762506 | AF5: 8.587484837
A6: 2 | B6: Adler | C6: Lucas | D6: =SUM(E6:AI6) -> 141.780478 | G6: 5.461018085 | H6: 6.575176001 | I6: 5.586418152 | J6: 8.008221865 | K6: 8.285293102 | N6: 7.839463472 | O6: 5.447238445 | P6: 7.358359098 | Q6: 8.339888573 | R6: 7.380340815 | U6: 6.994967461 | V6: 6.00180459 | W6: 8.799379826 | X6: 8.996049643 | Y6: 7.193532944 | AB6: 7.432058096 | AC6: 6.120523453 | AD6: 8.499488115 | AE6: 6.394151211 | AF6: 5.067105055
A7: 3 | B7: Bender | C7: Maximilian | D7: 131.6962104 | G7: 7.07853961 | H7: 6.508296013 | I7: 6.27474618 | J7: 8.844019413 | K7: 7.611093283 | N7: 5.910933018 | O7: 8.019269705 | P7: 5.617372513 | Q7: 7.592375994 | R7: 6.175240993 | U7: 6.407138109 | V7: 5.157132626 | W7: 5.189263105 | X7: 6.95821476 | Y7: 5.261705637 | AB7: 7.768200874 | AC7: 6.575674295 | AD7: 8.12325716 | AE7: 5.155658484 | AF7: 5.468078613
A8: 4 | B8: Bachmann | C8: Stefan | D8: 135.2924352 | G8: 5.43891716 | H8: 6.789576769 | I8: 7.620351315 | J8: 5.377671003 | K8: 5.097764015 | N8: 6.172993422 | O8: 7.635777473 | P8: 7.533918619 | Q8: 8.914722919 | R8: 7.856395483 | U8: 5.557442188 | V8: 5.592818975 | W8: 8.340526581 | X8: 7.424638033 | Y8: 8.053775311 | AB8: 5.226826906 | AC8: 8.750144482 | AD8: 5.613489866 | AE8: 6.744326591 | AF8: 5.550358057
A9: 5 | B9: Bischof | C9: Oliver | D9: 140.2302699 | G9: 8.376688242 | H9: 5.616974354 | I9: 7.555763006 | J9: 6.94260025 | K9: 7.926461458 | N9: 6.649742126 | O9: 8.57972455 | P9: 6.260970592 | Q9: 7.766497374 | R9: 5.089686394 | U9: 5.013113737 | V9: 6.817763329 | W9: 7.258972406 | X9: 6.094130039 | Y9: 6.604200125 | AB9: 7.894686222 | AC9: 6.954026937 | AD9: 8.984395981 | AE9: 6.335086107 | AF9: 7.508786678
A10: 6 | B10: Brecht | C10: Sebastian | D10: 145.1060739 | G10: 8.043605328 | H10: 7.733015776 | I10: 7.356970787 | J10: 7.333183527 | K10: 5.004492283 | N10: 5.358455896 | O10: 8.490107059 | P10: 6.697976828 | Q10: 8.749311447 | R10: 5.690181017 | U10: 8.480501175 | V10: 8.569152117 | W10: 6.208535671 | X10: 8.305287123 | Y10: 8.220097542 | AB10: 6.725853682 | AC10: 5.626519203 | AD10: 8.998735666 | AE10: 6.563881397 | AF10: 6.950210333
A11: 7 | B11: Blankenburg | C11: Tanja | D11: 138.1640944 | G11: 7.344732046 | H11: 6.837701797 | I11: 5.432547808 | J11: 5.185914516 | K11: 6.111370802 | N11: 5.710286617 | O11: 5.98066783 | P11: 8.973099709 | Q11: 7.523874521 | R11: 6.549194813 | U11: 5.538526773 | V11: 6.696552753 | W11: 6.278239965 | X11: 8.916191101 | Y11: 8.666852236 | AB11: 5.34720993 | AC11: 7.525437593 | AD11: 8.738437176 | AE11: 6.558493376 | AF11: 8.248763084
A12: 8 | B12: Dieckmann | C12: Thomas | D12: 137.4182935 | G12: 8.182400703 | H12: 6.93915391 | I12: 6.543682575 | J12: 5.476047277 | K12: 7.676956177 | N12: 6.917060614 | O12: 5.84381485 | P12: 8.874917269 | Q12: 5.841548443 | R12: 7.219801664 | U12: 5.314773083 | V12: 7.345080137 | W12: 5.624201775 | X12: 7.707790613 | Y12: 7.964319706 | AB12: 7.403228998 | AC12: 7.105452061 | AD12: 6.829755545 | AE12: 7.046754837 | AF12: 5.56155324
A13: 9 | B13: Diefenbach | C13: Maike | D13: 135.4919467 | G13: 8.384007692 | H13: 7.990638256 | I13: 5.042032957 | J13: 7.283038139 | K13: 5.052021265 | N13: 8.370001793 | O13: 6.762596369 | P13: 5.316595554 | Q13: 6.449193716 | R13: 7.67348671 | U13: 6.425485373 | V13: 6.762830734 | W13: 7.606410265 | X13: 6.37834692 | Y13: 8.974289656 | AB13: 5.819955349 | AC13: 5.828205824 | AD13: 5.25754261 | AE13: 7.308759928 | AF13: 6.806507587
A14: 10 | B14: Dunker | C14: Torben | D14: 145.1554856 | G14: 6.084154606 | H14: 8.010255575 | I14: 7.825597763 | J14: 6.919512987 | K14: 8.713635921 | N14: 5.147605181 | O14: 7.285615444 | P14: 8.450695753 | Q14: 7.176877022 | R14: 7.869543314 | U14: 8.301560402 | V14: 5.436685801 | W14: 8.809540272 | X14: 6.418983221 | Y14: 8.948154449 | AB14: 5.840709448 | AC14: 8.385765076 | AD14: 8.269604921 | AE14: 5.446700573 | AF14: 5.814287901
A15: 11 | B15: Dabrowski | C15: Philip | D15: 145.6524253 | G15: 7.616799116 | H15: 7.18036747 | I15: 7.591707468 | J15: 5.78801775 | K15: 6.570403814 | N15: 5.329418659 | O15: 8.79242301 | P15: 5.791061401 | Q15: 8.584416628 | R15: 7.985846996 | U15: 8.338998079 | V15: 7.717616558 | W15: 8.597212553 | X15: 6.336157799 | Y15: 8.457634211 | AB15: 8.111842155 | AC15: 5.32275033 | AD15: 7.266657352 | AE15: 6.793618917 | AF15: 7.479475021
A16: 12 | B16: Fritsch | C16: Romy | D16: 134.2000966 | G16: 7.461360931 | H16: 6.240235567 | I16: 8.923266888 | J16: 5.489966154 | K16: 7.20837307 | N16: 7.202646971 | O16: 6.10270977 | P16: 5.702137232 | Q16: 7.437273502 | R16: 5.00729537 | U16: 8.456823826 | V16: 5.194280386 | W16: 6.212396622 | X16: 6.878287554 | Y16: 6.963441372 | AB16: 8.538264513 | AC16: 5.624532223 | AD16: 6.358536482 | AE16: 7.083146095 | AF16: 6.11512208
A17: 13 | B17: Frisch | C17: Tommy | D17: 147.2862773 | G17: 6.540634394 | H17: 8.129881382 | I17: 8.34203887 | J17: 6.574480057 | K17: 8.609847307 | N17: 7.5617733 | O17: 6.324023485 | P17: 5.198102474 | Q17: 7.567452192 | R17: 8.668984413 | U17: 8.180645704 | V17: 8.62447834 | W17: 6.565557718 | X17: 8.443279743 | Y17: 7.249423742 | AB17: 8.398010731 | AC17: 6.061530828 | AD17: 8.255619049 | AE17: 6.31870389 | AF17: 5.671809673
A18: 14 | B18: Fichter | C18: Tamara | D18: 139.3046899 | G18: 5.50039053 | H18: 8.878330946 | I18: 5.513539314 | J18: 5.943723917 | K18: 5.896854877 | N18: 7.180299997 | O18: 6.802269459 | P18: 7.716857672 | Q18: 6.163356781 | R18: 8.567597628 | U18: 7.108291626 | V18: 6.300450563 | W18: 7.059180737 | X18: 6.253885984 | Y18: 8.875506401 | AB18: 7.865248442 | AC18: 5.255438805 | AD18: 8.418297052 | AE18: 6.425177097 | AF18: 7.579992056
A19: 15 | B19: Hamann | C19: Michaela | D19: 141.4317107 | G19: 6.073207617 | H19: 6.967689514 | I19: 7.354520082 | J19: 8.638366222 | K19: 8.561190367 | N19: 5.490741253 | O19: 6.199408293 | P19: 7.209685326 | Q19: 5.286453485 | R19: 6.899015903 | U19: 7.617878199 | V19: 6.618517399 | W19: 8.644960165 | X19: 8.001073837 | Y19: 6.744158983 | AB19: 6.454431534 | AC19: 6.624594927 | AD19: 8.2193923 | AE19: 5.301220655 | AF19: 8.525204659
A20: 16 | B20: Kluge | C20: Tina | D20: 140.1935086 | G20: 5.054850578 | H20: 7.908397913 | I20: 8.188547611 | J20: 8.07445693 | K20: 6.256223679 | N20: 5.10665679 | O20: 6.586046219 | P20: 6.57881093 | Q20: 6.744622707 | R20: 6.315312147 | U20: 6.260694027 | V20: 7.908730268 | W20: 7.610726357 | X20: 7.534517527 | Y20: 7.144646168 | AB20: 7.027197123 | AC20: 7.885265827 | AD20: 8.847049475 | AE20: 7.628646851 | AF20: 5.532109499
A21: 17 | B21: Kellner | C21: Marleen | D21: 140.657207 | G21: 8.862925768 | H21: 7.843053341 | I21: 5.880341291 | J21: 7.603791237 | K21: 6.604578257 | N21: 8.871296883 | O21: 5.065519571 | P21: 5.514622211 | Q21: 6.924739599 | R21: 7.632575989 | U21: 7.003936529 | V21: 7.068477631 | W21: 7.410584688 | X21: 8.136340618 | Y21: 6.799475431 | AB21: 5.210639477 | AC21: 6.195749998 | AD21: 7.601428032 | AE21: 6.799244165 | AF21: 7.627886295
A22: 18 | B22: Meyer | C22: Mira | D22: 140.3515382 | G22: 6.417068958 | H22: 8.218833685 | I22: 7.867816925 | J22: 6.586236238 | K22: 5.93281126 | N22: 6.683835268 | O22: 8.153106213 | P22: 7.69446063 | Q22: 5.612803459 | R22: 5.62492013 | U22: 6.164122581 | V22: 8.297897577 | W22: 6.496275425 | X22: 7.51189971 | Y22: 6.300737381 | AB22: 6.92324996 | AC22: 5.143499374 | AD22: 8.179919481 | AE22: 7.90141058 | AF22: 8.640633345
A23: 19 | B23: Maurer | C23: Wilhelm | D23: 154.6318336 | G23: 6.740080595 | H23: 7.744345665 | I23: 6.264686823 | J23: 8.307028294 | K23: 7.941884756 | N23: 8.748697758 | O23: 6.481652975 | P23: 7.918180466 | Q23: 8.271342516 | R23: 8.222051144 | U23: 8.563399553 | V23: 7.566979885 | W23: 7.142918348 | X23: 8.682179451 | Y23: 7.952940226 | AB23: 8.0055933 | AC23: 8.654360056 | AD23: 6.815147877 | AE23: 8.431640387 | AF23: 6.17672348
A24: 20 | B24: Penner | C24: Sebastian | D24: 143.0010686 | G24: 7.042703629 | H24: 7.038123369 | I24: 5.038499355 | J24: 7.607205153 | K24: 6.872998238 | N24: 8.678650618 | O24: 8.20568943 | P24: 6.134577036 | Q24: 5.013351917 | R24: 6.650443792 | U24: 7.460514545 | V24: 8.916896582 | W24: 5.500587463 | X24: 5.528775454 | Y24: 8.745971203 | AB24: 6.769196749 | AC24: 8.860064983 | AD24: 7.29016757 | AE24: 8.071684837 | AF24: 7.574966669
A25: 21 | B25: Teschner | C25: Matthias | D25: 140.6330562 | G25: 7.183645487 | H25: 7.895534992 | I25: 6.241657019 | J25: 8.833618164 | K25: 7.794759035 | N25: 7.870594025 | O25: 5.792504549 | P25: 6.769816875 | Q25: 8.172178984 | R25: 8.233939171 | U25: 5.718355894 | V25: 8.12388134 | W25: 6.607067347 | X25: 5.136972904 | Y25: 5.52947402 | AB25: 6.921659946 | AC25: 7.55776763 | AD25: 5.718553543 | AE25: 6.563613176 | AF25: 7.967462063
A26: 22 | B26: Topp | C26: Marco | D26: 146.7657571 | G26: 8.603477001 | H26: 5.511011839 | I26: 7.19873333 | J26: 7.718876123 | K26: 7.532198429 | N26: 7.826912165 | O26: 7.033194065 | P26: 5.866658926 | Q26: 7.730051041 | R26: 6.760993242 | U26: 8.283262253 | V26: 6.695384264 | W26: 7.179173946 | X26: 5.867584944 | Y26: 8.260712624 | AB26: 7.361149549 | AC26: 8.946187019 | AD26: 6.60598588 | AE26: 7.734531879 | AF26: 8.049678564
A27: 23 | B27: Uhlmann | C27: Wiebke | D27: 147.4920516 | G27: 5.678697348 | H27: 6.105794907 | I27: 7.494815111 | J27: 7.383603573 | K27: 8.043297529 | N27: 6.927262783 | O27: 7.641842604 | P27: 8.094037056 | Q27: 7.996847391 | R27: 5.845333576 | U27: 8.430200815 | V27: 8.937759876 | W27: 5.2226789 | X27: 8.076496124 | Y27: 7.51439786 | AB27: 8.571723938 | AC27: 7.889340639 | AD27: 6.416961193 | AE27: 6.632876158 | AF27: 8.588084221
Q32: confirmed:
R33: Andreas Stern

Sheet 2018 TOTAL
C2: 2018
A4: nr | B4: last name | C4: first name | D4: year | E4: January | F4: February | G4: March | H4: April | I4: May | J4: June | K4: July | L4: August | M4: September | N4: October | O4: November | P4: December
A5: 1 | B5: Albrecht | C5: Josefine | D5: =SUM(E5:P5) -> 599.1274126 | J5: ='2018 Jun'!D5 -> 151.4823563 | K5: ='2018 Jul'!D5 -> 155.9456832 | L5: ='2018 Aug'!D5 -> 160.5076964 | M5: ='2018 Sep'!D5 -> 131.1916766
A6: 2 | B6: Adler | C6: Lucas | D6: =SUM(E6:P6) -> 602.7417376 | J6: ='2018 Jun'!D6 -> 144.5569177 | K6: ='2018 Jul'!D6 -> 144.4433143 | L6: ='2018 Aug'!D6 -> 171.9610276 | M6: ='2018 Sep'!D6 -> 141.780478
A7: 3 | B7: Bender | C7: Maximilian | D7: 591.5318935 | J7: ='2018 Jun'!D7 -> 146.6435688 | K7: ='2018 Jul'!D7 -> 143.1677558 | L7: ='2018 Aug'!D7 -> 170.0243585 | M7: ='2018 Sep'!D7 -> 131.6962104
A8: 4 | B8: Bachmann | C8: Stefan | D8: 575.4287503 | J8: ='2018 Jun'!D8 -> 144.8472176 | K8: ='2018 Jul'!D8 -> 144.2233016 | L8: ='2018 Aug'!D8 -> 151.0657959 | M8: ='2018 Sep'!D8 -> 135.2924352
A9: 5 | B9: Bischof | C9: Oliver | D9: 596.2405584 | J9: ='2018 Jun'!D9 -> 140.5865691 | K9: ='2018 Jul'!D9 -> 149.6919677 | L9: ='2018 Aug'!D9 -> 165.7317517 | M9: ='2018 Sep'!D9 -> 140.2302699
A10: 6 | B10: Brecht | C10: Sebastian | D10: 616.9931586 | J10: ='2018 Jun'!D10 -> 149.2384734 | K10: ='2018 Jul'!D10 -> 164.475045 | L10: ='2018 Aug'!D10 -> 158.1735663 | M10: ='2018 Sep'!D10 -> 145.1060739
A11: 7 | B11: Blankenburg | C11: Tanja | D11: 597.7379653 | J11: ='2018 Jun'!D11 -> 149.4788072 | K11: ='2018 Jul'!D11 -> 150.4500816 | L11: ='2018 Aug'!D11 -> 159.6449821 | M11: ='2018 Sep'!D11 -> 138.1640944
A12: 8 | B12: Dieckmann | C12: Thomas | D12: 583.2398331 | J12: ='2018 Jun'!D12 -> 140.0825834 | K12: ='2018 Jul'!D12 -> 150.251889 | L12: ='2018 Aug'!D12 -> 155.4870672 | M12: ='2018 Sep'!D12 -> 137.4182935
A13: 9 | B13: Diefenbach | C13: Maike | D13: 597.1912897 | J13: ='2018 Jun'!D13 -> 147.9030163 | K13: ='2018 Jul'!D13 -> 158.6580398 | L13: ='2018 Aug'!D13 -> 155.1382868 | M13: ='2018 Sep'!D13 -> 135.4919467
A14: 10 | B14: Dunker | C14: Torben | D14: 617.9277461 | J14: ='2018 Jun'!D14 -> 148.1594243 | K14: ='2018 Jul'!D14 -> 156.6687019 | L14: ='2018 Aug'!D14 -> 167.9441342 | M14: ='2018 Sep'!D14 -> 145.1554856
A15: 11 | B15: Dabrowski | C15: Philip | D15: 589.7901676 | J15: ='2018 Jun'!D15 -> 143.3396347 | K15: ='2018 Jul'!D15 -> 140.667527 | L15: ='2018 Aug'!D15 -> 160.1305807 | M15: ='2018 Sep'!D15 -> 145.6524253
A16: 12 | B16: Fritsch | C16: Romy | D16: 607.5473149 | J16: ='2018 Jun'!D16 -> 151.5264606 | K16: ='2018 Jul'!D16 -> 156.2846878 | L16: ='2018 Aug'!D16 -> 165.5360699 | M16: ='2018 Sep'!D16 -> 134.2000966
A17: 13 | B17: Frisch | C17: Tommy | D17: 601.39904 | J17: ='2018 Jun'!D17 -> 150.6023524 | K17: ='2018 Jul'!D17 -> 146.5050323 | L17: ='2018 Aug'!D17 -> 157.005378 | M17: ='2018 Sep'!D17 -> 147.2862773
A18: 14 | B18: Fichter | C18: Tamara | D18: 599.2852461 | J18: ='2018 Jun'!D18 -> 144.6339793 | K18: ='2018 Jul'!D18 -> 155.9236991 | L18: ='2018 Aug'!D18 -> 159.4228778 | M18: ='2018 Sep'!D18 -> 139.3046899
A19: 15 | B19: Hamann | C19: Michaela | D19: 621.2719963 | J19: ='2018 Jun'!D19 -> 154.1017835 | K19: ='2018 Jul'!D19 -> 162.5984123 | L19: ='2018 Aug'!D19 -> 163.1400898 | M19: ='2018 Sep'!D19 -> 141.4317107
A20: 16 | B20: Kluge | C20: Tina | D20: 610.9268792 | J20: ='2018 Jun'!D20 -> 153.0809488 | K20: ='2018 Jul'!D20 -> 163.4320495 | L20: ='2018 Aug'!D20 -> 154.2203722 | M20: ='2018 Sep'!D20 -> 140.1935086
A21: 17 | B21: Kellner | C21: Marleen | D21: 595.5801179 | J21: ='2018 Jun'!D21 -> 146.8122628 | K21: ='2018 Jul'!D21 -> 153.190953 | L21: ='2018 Aug'!D21 -> 154.9196951 | M21: ='2018 Sep'!D21 -> 140.657207
A22: 18 | B22: Meyer | C22: Mira | D22: 601.4460299 | J22: ='2018 Jun'!D22 -> 146.3865037 | K22: ='2018 Jul'!D22 -> 152.8738258 | L22: ='2018 Aug'!D22 -> 161.8341622 | M22: ='2018 Sep'!D22 -> 140.3515382
A23: 19 | B23: Maurer | C23: Wilhelm | D23: 618.5013225 | J23: ='2018 Jun'!D23 -> 143.8167675 | K23: ='2018 Jul'!D23 -> 156.9429328 | L23: ='2018 Aug'!D23 -> 163.1097887 | M23: ='2018 Sep'!D23 -> 154.6318336
A24: 20 | B24: Penner | C24: Sebastian | D24: 607.0323346 | J24: ='2018 Jun'!D24 -> 150.1520538 | K24: ='2018 Jul'!D24 -> 152.6637008 | L24: ='2018 Aug'!D24 -> 161.2155113 | M24: ='2018 Sep'!D24 -> 143.0010686
A25: 21 | B25: Teschner | C25: Matthias | D25: 601.6227071 | J25: ='2018 Jun'!D25 -> 145.3049643 | K25: ='2018 Jul'!D25 -> 157.2206848 | L25: ='2018 Aug'!D25 -> 158.4640019 | M25: ='2018 Sep'!D25 -> 140.6330562
A26: 22 | B26: Topp | C26: Marco | D26: 615.3060935 | J26: ='2018 Jun'!D26 -> 143.9890189 | K26: ='2018 Jul'!D26 -> 161.1372459 | L26: ='2018 Aug'!D26 -> 163.4140716 | M26: ='2018 Sep'!D26 -> 146.7657571
A27: 23 | B27: Uhlmann | C27: Wiebke | D27: 618.4053924 | J27: ='2018 Jun'!D27 -> 148.8993814 | K27: ='2018 Jul'!D27 -> 156.573159 | L27: ='2018 Aug'!D27 -> 165.4408004 | M27: ='2018 Sep'!D27 -> 147.4920516
J32: confirmed:
K33: Andreas Stern
